Workbook

Sheet Hoja1
O1: Código: M-AC-F012
O2: Versión: 01 | AA2: TIPO DE ENTIDAD O USUARIO | AF2: DÍAS NO LABORABLES
O3: Fecha: 15/01/2017 | AA3: CIUDADANO | AF3: 2021-01-01
O4: Página: 1 de 1 | AA4: ACADEMIA | AF4: 2021-01-02
AA5: EMPRESA PRIVADA | AF5: 2021-01-03
B6: Dependencia: | AA6: ENTIDAD PÚBLICA | AF6: 2021-01-09
AA7: EXTRANJERO | AF7: 2021-01-10
B8: Período de Reporte | AA8: FUNCIONARIO IDEAM | AF8: 2021-01-11
AA9: ONG/ORG | AF9: 2021-01-16
A10: DATOS DEL REQUERIMIENTO | E10: POSTURA DE REQUERIMIENTO | H10: RESOLUCION DEL REQUERIMIENTO | M10: ANÁLISIS DE RESPUESTAS | AF10: 2021-01-17
A11: No. | B11: No. DE REQUERIMIENTO | C11: FECHA DE REQUERIMIENTO (dd/mm/aaaa) | D11: TIPO DE ENTIDAD O USUARIO | E11: MEDIO RECEPCIÓN | F11: TIPO DE REQUERIMIENTO | G11: PRODUCTO O SERVICIO AL CUAL SE REFIERE EL REQUERIMIENTO | H11: ¿ EL REQUERIMIENTO FUE ESCALADO? | I11: DEPENDENCIA QUE DA RESPUESTA O A LA QUE SE DIRECCIONA | J11: FECHA DE RESOLUCIÓN DEL REQUERIMIENTO (dd/mm/aaaa) | K11: CANAL POR EL CUAL FUE RESUELTO EL REQUERIMIENTO | L11: OBSERVACIONES | M11: FECHA OPORTUNA DE RESPUESTA | N11: ESTADO (A TIEMPO, FUERA DE TIEMPO, SIN RESPUESTA) | O11: TIEMPO QUE TARDÓ EN DAR RESPUESTA | P11: DÍAS VENCIDOS CON RESPECTO A FECHA OPORTUNA DE RESPUESTA | AA11: GÉNERO | AF11: 2021-01-23
A12: =IF(B12<>"",1,"") -> 1 | B12: 20219050039332 | C12: 2021-04-01 | D12: CIUDADANO | E12: MODULO CONTACTENOS | F12: SOLICITUD DE INFORMACIÓN Y DOCUMENTOS | G12: SOLICITUD DE INFORMACIÓN HIDROMETEOROLÓGICA | H12: SI | I12: SUBDIRECCIÓN DE HIDROLOGÍA | J12: 2021-04-26 | K12: CORREO ELECTRÓNICO | M12: =IFERROR(WORKDAY(C12,S12,DiasNOLaborables),"") -> 2021-04-30 | N12: =+IF(C12="","",IF(J12="","SIN RESPUESTA",(IF(J12<=M12,"A TIEMPO","FUERA DE TIEMPO")))) -> A TIEMPO | O12: =IF(J12="","",NETWORKDAYS(C12+1,J12,DiasNOLaborables)) -> 16 | P12: =IF(NETWORKDAYS(M12+1,J12,DiasNOLaborables)<=0,"",NETWORKDAYS(M12+1,J12,DiasNOLaborables)) ->  | S12: =IFERROR(VLOOKUP(F13,$AA$51:$AB$64,2),"") -> 20
A13: =IF(B13<>"",A12+1,"") -> 2 | B13: 20219050039342 | C13: 2021-04-01 | D13: CIUDADANO | E13: MODULO CONTACTENOS | F13: SOLICITUD DE INFORMACIÓN Y DOCUMENTOS | G13: SOLICITUD DE INFORMACIÓN HIDROMETEOROLÓGICA | H13: NO | I13: GRUPO DE SERVICIO AL CIUDADANO | J13: 2021-04-26 | K13: CORREO ELECTRÓNICO | M13: =IFERROR(WORKDAY(C13,S13,DiasNOLaborables),"") -> 2021-04-30 | N13: =+IF(C13="","",IF(J13="","SIN RESPUESTA",(IF(J13<=M13,"A TIEMPO","FUERA DE TIEMPO")))) -> A TIEMPO | O13: =IF(J13="","",NETWORKDAYS(C13+1,J13,DiasNOLaborables)) -> 16 | P13: =IF(NETWORKDAYS(M13+1,J13,DiasNOLaborables)<=0,"",NETWORKDAYS(M13+1,J13,DiasNOLaborables)) ->  | S13: 20 | AA13: FEMENINO | AF13: 2021-01-24
A14: =IF(B14<>"",A13+1,"") -> 3 | B14: 20219050039392 | C14: 2021-04-01 | D14: ACADEMIA | E14: MODULO CONTACTENOS | F14: SOLICITUD DE INFORMACIÓN Y DOCUMENTOS | G14: SOLICITUD DE INFORMACIÓN HIDROMETEOROLÓGICA | H14: NO | I14: GRUPO DE SERVICIO AL CIUDADANO | J14: 2021-04-26 | K14: CORREO ELECTRÓNICO | M14: =IFERROR(WORKDAY(C14,S13,DiasNOLaborables),"") -> 2021-04-30 | N14: =+IF(C14="","",IF(J14="","SIN RESPUESTA",(IF(J14<=M14,"A TIEMPO","FUERA DE TIEMPO")))) -> A TIEMPO | O14: =IF(J14="","",NETWORKDAYS(C14+1,J14,DiasNOLaborables)) -> 16 | P14: =IF(NETWORKDAYS(M14+1,J14,DiasNOLaborables)<=0,"",NETWORKDAYS(M14+1,J14,DiasNOLaborables)) ->  | S14: 20 | AA14: MASCULINO | AF14: 2021-01-30
A15: 4 | B15: 20219050039422 | C15: 2021-04-01 | D15: ACADEMIA | E15: MODULO CONTACTENOS | F15: SOLICITUD DE INFORMACIÓN Y DOCUMENTOS | G15: SOLICITUD DE INFORMACIÓN HIDROMETEOROLÓGICA | H15: NO | I15: GRUPO DE SERVICIO AL CIUDADANO | J15: 2021-04-26 | K15: CORREO ELECTRÓNICO | M15: =IFERROR(WORKDAY(C15,S14,DiasNOLaborables),"") -> 2021-04-30 | N15: =+IF(C15="","",IF(J15="","SIN RESPUESTA",(IF(J15<=M15,"A TIEMPO","FUERA DE TIEMPO")))) -> A TIEMPO | O15: =IF(J15="","",NETWORKDAYS(C15+1,J15,DiasNOLaborables)) -> 16 | P15: =IF(NETWORKDAYS(M15+1,J15,DiasNOLaborables)<=0,"",NETWORKDAYS(M15+1,J15,DiasNOLaborables)) ->  | S15: 20 | AA15: PERSONA JURÍDICA | AF15: 2021-01-31
A16: 5 | B16: 20219050039452 | C16: 2021-04-01 | D16: CIUDADANO | E16: MODULO CONTACTENOS | F16: SOLICITUD DE INFORMACIÓN Y DOCUMENTOS | G16: SOLICITUD DE INFORMACIÓN HIDROMETEOROLÓGICA | H16: NO | I16: GRUPO DE SERVICIO AL CIUDADANO | J16: 2021-04-26 | K16: CORREO ELECTRÓNICO | M16: =IFERROR(WORKDAY(C16,S15,DiasNOLaborables),"") -> 2021-04-30 | N16: =+IF(C16="","",IF(J16="","SIN RESPUESTA",(IF(J16<=M16,"A TIEMPO","FUERA DE TIEMPO")))) -> A TIEMPO | O16: =IF(J16="","",NETWORKDAYS(C16+1,J16,DiasNOLaborables)) -> 16 | P16: =IF(NETWORKDAYS(M16+1,J16,DiasNOLaborables)<=0,"",NETWORKDAYS(M16+1,J16,DiasNOLaborables)) ->  | S16: 20 | AF16: 2021-02-06
A17: 6 | B17: 20219050039462 | C17: 2021-04-01 | D17: CIUDADANO | E17: MODULO CONTACTENOS | F17: SOLICITUD DE INFORMACIÓN Y DOCUMENTOS | G17: SOLICITUD DE INFORMACIÓN HIDROMETEOROLÓGICA | H17: NO | I17: GRUPO DE SERVICIO AL CIUDADANO | J17: 2021-04-26 | K17: CORREO ELECTRÓNICO | M17: =IFERROR(WORKDAY(C17,S16,DiasNOLaborables),"") -> 2021-04-30 | N17: =+IF(C17="","",IF(J17="","SIN RESPUESTA",(IF(J17<=M17,"A TIEMPO","FUERA DE TIEMPO")))) -> A TIEMPO | O17: =IF(J17="","",NETWORKDAYS(C17+1,J17,DiasNOLaborables)) -> 16 | S17: 20 | AA17: DEPENDENCIA QUE DA RESPUESTA O LA QUE SE DIRECCIONA | AF17: 2021-02-07
A18: 7 | B18: 20219050039472 | C18: 2021-04-01 | D18: ACADEMIA | E18: MODULO CONTACTENOS | F18: SOLICITUD DE INFORMACIÓN Y DOCUMENTOS | G18: SOLICITUD DE INFORMACIÓN HIDROMETEOROLÓGICA | H18: SI | I18: SUBDIRECCIÓN DE HIDROLOGÍA | J18: 2021-04-26 | K18: CORREO ELECTRÓNICO | M18: =IFERROR(WORKDAY(C18,S17,DiasNOLaborables),"") -> 2021-04-30 | N18: =+IF(C18="","",IF(J18="","SIN RESPUESTA",(IF(J18<=M18,"A TIEMPO","FUERA DE TIEMPO")))) -> A TIEMPO | O18: =IF(J18="","",NETWORKDAYS(C18+1,J18,DiasNOLaborables)) -> 16 | S18: 35 | AA18: AREA OPERATIVA No. 1 | AF18: 2021-02-13
A19: 8 | B19: 20219050039412 | C19: 2021-04-01 | D19: EMPRESA PRIVADA | E19: MODULO CONTACTENOS | F19: CERTIFICACIONES DE TIEMPO, CLIMA Y EVENTOS HIDROLÓGICOS | G19: CERTIFICACIONES DE TIEMPO Y CLIMA | H19: SI | I19: SUBDIRECCIÓN DE METEOROLOGÍA | J19: 2021-04-14 | K19: CORREO ELECTRÓNICO | M19: =IFERROR(WORKDAY(C19,S18,DiasNOLaborables),"") -> 2021-05-24 | N19: =+IF(C19="","",IF(J19="","SIN RESPUESTA",(IF(J19<=M19,"A TIEMPO","FUERA DE TIEMPO")))) -> A TIEMPO | O19: =IF(J19="","",NETWORKDAYS(C19+1,J19,DiasNOLaborables)) -> 8 | S19: 20 | AA19: AREA OPERATIVA No. 2 | AF19: 2021-02-14
A20: 9 | B20: 20219050039482 | C20: 2021-04-02 | D20: CIUDADANO | E20: MODULO CONTACTENOS | F20: SOLICITUD DE INFORMACIÓN Y DOCUMENTOS | G20: BOSQUES | H20: SI | I20: SUBDIRECCIÓN DE ECOSISTEMAS E INFORMACIÓN AMBIENTAL | J20: 2021-04-16 | K20: CORREO ELECTRÓNICO | M20: =IFERROR(WORKDAY(C20,S19,DiasNOLaborables),"") -> 2021-04-30 | N20: =+IF(C20="","",IF(J20="","SIN RESPUESTA",(IF(J20<=M20,"A TIEMPO","FUERA DE TIEMPO")))) -> A TIEMPO | O20: =IF(J20="","",NETWORKDAYS(C20+1,J20,DiasNOLaborables)) -> 10 | S20: 20 | AA20: AREA OPERATIVA No. 3 | AF20: 2021-01-20
A21: 10 | B21: 20219050039512 | C21: 2021-04-02 | D21: CIUDADANO | E21: MODULO CONTACTENOS | F21: SOLICITUD DE INFORMACIÓN Y DOCUMENTOS | G21: SOLICITUD DE INFORMACIÓN HIDROMETEOROLÓGICA | H21: NO | I21: GRUPO DE SERVICIO AL CIUDADANO | J21: 2021-04-26 | K21: CORREO ELECTRÓNICO | M21: =IFERROR(WORKDAY(C21,S20,DiasNOLaborables),"") -> 2021-04-30 | N21: =+IF(C21="","",IF(J21="","SIN RESPUESTA",(IF(J21<=M21,"A TIEMPO","FUERA DE TIEMPO")))) -> A TIEMPO | O21: =IF(J21="","",NETWORKDAYS(C21+1,J21,DiasNOLaborables)) -> 16 | S21: 20 | AA21: AREA OPERATIVA No. 4 | AF21: 2021-02-21
A22: 11 | B22: 20219050039522 | C22: 2021-04-02 | D22: ACADEMIA | E22: MODULO CONTACTENOS | F22: SOLICITUD DE INFORMACIÓN Y DOCUMENTOS | G22: SOLICITUD DE INFORMACIÓN HIDROMETEOROLÓGICA | H22: NO | I22: GRUPO DE SERVICIO AL CIUDADANO | J22: 2021-04-26 | K22: CORREO ELECTRÓNICO | M22: =IFERROR(WORKDAY(C22,S21,DiasNOLaborables),"") -> 2021-04-30 | N22: =+IF(C22="","",IF(J22="","SIN RESPUESTA",(IF(J22<=M22,"A TIEMPO","FUERA DE TIEMPO")))) -> A TIEMPO | O22: =IF(J22="","",NETWORKDAYS(C22+1,J22,DiasNOLaborables)) -> 16 | S22: 20 | AA22: AREA OPERATIVA No. 5 | AF22: 2021-02-27
A23: 12 | B23: 20219050039542 | C23: 2021-04-02 | D23: ACADEMIA | E23: MODULO CONTACTENOS | F23: SOLICITUD DE INFORMACIÓN Y DOCUMENTOS | G23: SOLICITUD DE INFORMACIÓN HIDROMETEOROLÓGICA | H23: NO | I23: GRUPO DE SERVICIO AL CIUDADANO | J23: 2021-04-27 | K23: CORREO ELECTRÓNICO | M23: =IFERROR(WORKDAY(C23,S22,DiasNOLaborables),"") -> 2021-04-30 | N23: =+IF(C23="","",IF(J23="","SIN RESPUESTA",(IF(J23<=M23,"A TIEMPO","FUERA DE TIEMPO")))) -> A TIEMPO | O23: =IF(J23="","",NETWORKDAYS(C23+1,J23,DiasNOLaborables)) -> 17 | S23: 20 | AA23: AREA OPERATIVA No. 6 | AF23: 2021-02-28
A24: 13 | B24: 20219050039552 | C24: 2021-04-02 | D24: ACADEMIA | E24: MODULO CONTACTENOS | F24: SOLICITUD DE INFORMACIÓN Y DOCUMENTOS | G24: SOLICITUD DE INFORMACIÓN HIDROMETEOROLÓGICA | H24: NO | I24: GRUPO DE SERVICIO AL CIUDADANO | J24: 2021-04-27 | K24: CORREO ELECTRÓNICO | M24: =IFERROR(WORKDAY(C24,S23,DiasNOLaborables),"") -> 2021-04-30 | N24: =+IF(C24="","",IF(J24="","SIN RESPUESTA",(IF(J24<=M24,"A TIEMPO","FUERA DE TIEMPO")))) -> A TIEMPO | O24: =IF(J24="","",NETWORKDAYS(C24+1,J24,DiasNOLaborables)) -> 17 | S24: 20 | AA24: AREA OPERATIVA No. 7 | AF24: 2021-03-06
A25: 14 | B25: 20219050039562 | C25: 2021-04-02 | D25: ACADEMIA | E25: MODULO CONTACTENOS | F25: SOLICITUD DE INFORMACIÓN Y DOCUMENTOS | G25: SOLICITUD DE INFORMACIÓN HIDROMETEOROLÓGICA | H25: NO | I25: GRUPO DE SERVICIO AL CIUDADANO | J25: 2021-04-27 | K25: CORREO ELECTRÓNICO | M25: =IFERROR(WORKDAY(C25,S24,DiasNOLaborables),"") -> 2021-04-30 | N25: =+IF(C25="","",IF(J25="","SIN RESPUESTA",(IF(J25<=M25,"A TIEMPO","FUERA DE TIEMPO")))) -> A TIEMPO | O25: =IF(J25="","",NETWORKDAYS(C25+1,J25,DiasNOLaborables)) -> 17 | S25: 20 | AA25: AREA OPERATIVA No. 8 | AF25: 2021-03-07
A26: 15 | B26: 20219050039572 | C26: 2021-04-02 | D26: CIUDADANO | E26: MODULO CONTACTENOS | F26: SOLICITUD DE INFORMACIÓN Y DOCUMENTOS | G26: SOLICITUD DE INFORMACIÓN HIDROMETEOROLÓGICA | H26: NO | I26: GRUPO DE SERVICIO AL CIUDADANO | J26: 2021-04-27 | K26: CORREO ELECTRÓNICO | M26: =IFERROR(WORKDAY(C26,S25,DiasNOLaborables),"") -> 2021-04-30 | N26: =+IF(C26="","",IF(J26="","SIN RESPUESTA",(IF(J26<=M26,"A TIEMPO","FUERA DE TIEMPO")))) -> A TIEMPO | O26: =IF(J26="","",NETWORKDAYS(C26+1,J26,DiasNOLaborables)) -> 17 | S26: 20 | AA26: AREA OPERATIVA No. 9 | AF26: 2021-03-13
A27: 16 | B27: 20219050039582 | C27: 2021-04-02 | D27: ACADEMIA | E27: MODULO CONTACTENOS | F27: SOLICITUD DE INFORMACIÓN Y DOCUMENTOS | G27: SOLICITUD DE INFORMACIÓN HIDROMETEOROLÓGICA | H27: NO | I27: GRUPO DE SERVICIO AL CIUDADANO | J27: 2021-04-27 | K27: CORREO ELECTRÓNICO | M27: =IFERROR(WORKDAY(C27,S26,DiasNOLaborables),"") -> 2021-04-30 | N27: =+IF(C27="","",IF(J27="","SIN RESPUESTA",(IF(J27<=M27,"A TIEMPO","FUERA DE TIEMPO")))) -> A TIEMPO | O27: =IF(J27="","",NETWORKDAYS(C27+1,J27,DiasNOLaborables)) -> 17 | S27: 20 | AA27: AREA OPERATIVA No. 10 | AF27: 2021-03-14
A28: 17 | B28: 20219050039642 | C28: 2021-04-02 | D28: CIUDADANO | E28: CORREO ELECTRÓNICO | F28: SOLICITUD DE INFORMACIÓN Y DOCUMENTOS | G28: SOLICITUD DE INFORMACIÓN HIDROMETEOROLÓGICA | H28: NO | I28: GRUPO DE SERVICIO AL CIUDADANO | J28: 2021-04-27 | K28: CORREO ELECTRÓNICO | M28: =IFERROR(WORKDAY(C28,S27,DiasNOLaborables),"") -> 2021-04-30 | N28: =+IF(C28="","",IF(J28="","SIN RESPUESTA",(IF(J28<=M28,"A TIEMPO","FUERA DE TIEMPO")))) -> A TIEMPO | O28: =IF(J28="","",NETWORKDAYS(C28+1,J28,DiasNOLaborables)) -> 17 | S28: 20 | AA28: AREA OPERATIVA No. 11 | AF28: 2021-03-20
A29: 18 | B29: 20219050039652 | C29: 2021-04-02 | D29: CIUDADANO | E29: CORREO ELECTRÓNICO | F29: SOLICITUD DE INFORMACIÓN Y DOCUMENTOS | G29: SOLICITUD DE INFORMACIÓN HIDROMETEOROLÓGICA | H29: NO | I29: GRUPO DE SERVICIO AL CIUDADANO | J29: 2021-04-27 | K29: CORREO ELECTRÓNICO | M29: =IFERROR(WORKDAY(C29,S28,DiasNOLaborables),"") -> 2021-04-30 | N29: =+IF(C29="","",IF(J29="","SIN RESPUESTA",(IF(J29<=M29,"A TIEMPO","FUERA DE TIEMPO")))) -> A TIEMPO | O29: =IF(J29="","",NETWORKDAYS(C29+1,J29,DiasNOLaborables)) -> 17 | S29: 20 | AA29: DIRECCIÓN GENERAL | AF29: 2021-03-21
A30: 19 | B30: 20219050039662 | C30: 2021-04-02 | D30: CIUDADANO | E30: CORREO ELECTRÓNICO | F30: SOLICITUD DE INFORMACIÓN Y DOCUMENTOS | G30: SOLICITUD DE INFORMACIÓN HIDROMETEOROLÓGICA | H30: NO | I30: GRUPO DE SERVICIO AL CIUDADANO | J30: 2021-04-27 | K30: CORREO ELECTRÓNICO | M30: =IFERROR(WORKDAY(C30,S29,DiasNOLaborables),"") -> 2021-04-30 | N30: =+IF(C30="","",IF(J30="","SIN RESPUESTA",(IF(J30<=M30,"A TIEMPO","FUERA DE TIEMPO")))) -> A TIEMPO | O30: =IF(J30="","",NETWORKDAYS(C30+1,J30,DiasNOLaborables)) -> 17 | S30: 20 | AA30: GRUPO DE ADMINISTRACIÓN Y DESARROLLO DEL TALENTO HUMANO | AF30: 2021-03-22
A31: 20 | B31: 20219050039692 | C31: 2021-04-03 | D31: CIUDADANO | E31: MODULO CONTACTENOS | F31: SOLICITUD DE INFORMACIÓN Y DOCUMENTOS | G31: SOLICITUD DE INFORMACIÓN HIDROMETEOROLÓGICA | H31: NO | I31: GRUPO DE SERVICIO AL CIUDADANO | J31: 2021-04-27 | K31: CORREO ELECTRÓNICO | M31: =IFERROR(WORKDAY(C31,S30,DiasNOLaborables),"") -> 2021-04-30 | N31: =+IF(C31="","",IF(J31="","SIN RESPUESTA",(IF(J31<=M31,"A TIEMPO","FUERA DE TIEMPO")))) -> A TIEMPO | O31: =IF(J31="","",NETWORKDAYS(C31+1,J31,DiasNOLaborables)) -> 17 | S31: 35 | AA31: GRUPO DE COMUNICACIONES | AF31: 2021-03-27
A32: 21 | B32: 20219050039672 | C32: 2021-04-03 | D32: EMPRESA PRIVADA | E32: MODULO CONTACTENOS | F32: CERTIFICACIONES DE TIEMPO, CLIMA Y EVENTOS HIDROLÓGICOS | G32: CERTIFICACIONES DE TIEMPO Y CLIMA | H32: SI | I32: SUBDIRECCIÓN DE METEOROLOGÍA | J32: 2021-04-09 | K32: CORREO ELECTRÓNICO | M32: =IFERROR(WORKDAY(C32,S31,DiasNOLaborables),"") -> 2021-05-24 | N32: =+IF(C32="","",IF(J32="","SIN RESPUESTA",(IF(J32<=M32,"A TIEMPO","FUERA DE TIEMPO")))) -> A TIEMPO | O32: =IF(J32="","",NETWORKDAYS(C32+1,J32,DiasNOLaborables)) -> 5 | S32: 35 | AA32: GRUPO DE CONTABILIDAD | AF32: 2021-03-28
A33: 22 | B33: 20219050039682 | C33: 2021-04-03 | D33: EMPRESA PRIVADA | E33: MODULO CONTACTENOS | F33: CERTIFICACIONES DE TIEMPO, CLIMA Y EVENTOS HIDROLÓGICOS | G33: CERTIFICACIONES DE TIEMPO Y CLIMA | H33: SI | I33: SUBDIRECCIÓN DE METEOROLOGÍA | J33: 2021-04-30 | K33: CORREO ELECTRÓNICO | M33: =IFERROR(WORKDAY(C33,S32,DiasNOLaborables),"") -> 2021-05-24 | N33: =+IF(C33="","",IF(J33="","SIN RESPUESTA",(IF(J33<=M33,"A TIEMPO","FUERA DE TIEMPO")))) -> A TIEMPO | O33: =IF(J33="","",NETWORKDAYS(C33+1,J33,DiasNOLaborables)) -> 20 | S33: 20 | AA33: GRUPO DE CONTROL DISCIPLINARIO INTERNO | AF33: 2021-04-01
A34: 23 | B34: 20219050039902 | C34: 2021-04-03 | D34: CIUDADANO | E34: MODULO CONTACTENOS | F34: SOLICITUD DE INFORMACIÓN Y DOCUMENTOS | G34: SUELOS Y TIERRAS | H34: SI | I34: GRUPO DE GESTIÓN DOCUMENTAL Y CENTRO DE DOCUMENTACIÓN | J34: 2021-04-14 | K34: CORREO ELECTRÓNICO | M34: =IFERROR(WORKDAY(C34,S33,DiasNOLaborables),"") -> 2021-04-30 | N34: =+IF(C34="","",IF(J34="","SIN RESPUESTA",(IF(J34<=M34,"A TIEMPO","FUERA DE TIEMPO")))) -> A TIEMPO | O34: =IF(J34="","",NETWORKDAYS(C34+1,J34,DiasNOLaborables)) -> 8 | S34: 20 | AA34: GRUPO DE GESTIÓN DOCUMENTAL Y CENTRO DE DOCUMENTACIÓN | AF34: 2021-04-02
A35: 24 | B35: 20219050039852 | C35: 2021-04-03 | D35: EMPRESA PRIVADA | E35: CORREO ELECTRÓNICO | F35: SOLICITUD DE INFORMACIÓN Y DOCUMENTOS | G35: REGISTROS AMBIENTALES | H35: SI | I35: SUBDIRECCIÓN DE ESTUDIOS AMBIENTALES | J35: 2021-04-07 | K35: CORREO ELECTRÓNICO | M35: =IFERROR(WORKDAY(C35,S34,DiasNOLaborables),"") -> 2021-04-30 | N35: =+IF(C35="","",IF(J35="","SIN RESPUESTA",(IF(J35<=M35,"A TIEMPO","FUERA DE TIEMPO")))) -> A TIEMPO | O35: =IF(J35="","",NETWORKDAYS(C35+1,J35,DiasNOLaborables)) -> 3 | S35: 20 | AA35: GRUPO DE PRESUPUESTO | AF35: 2021-04-03
A36: 25 | B36: 20219050039862 | C36: 2021-04-03 | D36: EMPRESA PRIVADA | E36: CORREO ELECTRÓNICO | F36: SOLICITUD DE INFORMACIÓN Y DOCUMENTOS | G36: REGISTROS AMBIENTALES | H36: SI | I36: SUBDIRECCIÓN DE ESTUDIOS AMBIENTALES | J36: 2021-04-14 | K36: CORREO ELECTRÓNICO | M36: =IFERROR(WORKDAY(C36,S35,DiasNOLaborables),"") -> 2021-04-30 | N36: =+IF(C36="","",IF(J36="","SIN RESPUESTA",(IF(J36<=M36,"A TIEMPO","FUERA DE TIEMPO")))) -> A TIEMPO | O36: =IF(J36="","",NETWORKDAYS(C36+1,J36,DiasNOLaborables)) -> 8 | S36: 20 | AA36: GRUPO DE SERVICIO AL CIUDADANO | AF36: 2021-04-04
A37: 26 | B37: 20219050039872 | C37: 2021-04-03 | D37: CIUDADANO | E37: CORREO ELECTRÓNICO | F37: SOLICITUD DE INFORMACIÓN Y DOCUMENTOS | G37: REGISTROS AMBIENTALES | H37: SI | I37: SUBDIRECCIÓN DE ESTUDIOS AMBIENTALES | J37: 2021-04-12 | K37: CORREO ELECTRÓNICO | M37: =IFERROR(WORKDAY(C37,S36,DiasNOLaborables),"") -> 2021-04-30 | N37: =+IF(C37="","",IF(J37="","SIN RESPUESTA",(IF(J37<=M37,"A TIEMPO","FUERA DE TIEMPO")))) -> A TIEMPO | O37: =IF(J37="","",NETWORKDAYS(C37+1,J37,DiasNOLaborables)) -> 6 | S37: 20 | AA37: GRUPO DE SERVICIOS ADMINISTRATIVOS | AF37: 2021-04-10
A38: 27 | B38: 20219050039882 | C38: 2021-04-03 | D38: EMPRESA PRIVADA | E38: CORREO ELECTRÓNICO | F38: SOLICITUD DE INFORMACIÓN Y DOCUMENTOS | G38: REGISTROS AMBIENTALES | H38: SI | I38: SUBDIRECCIÓN DE ESTUDIOS AMBIENTALES | J38: 2021-04-12 | K38: CORREO ELECTRÓNICO | M38: =IFERROR(WORKDAY(C38,S37,DiasNOLaborables),"") -> 2021-04-30 | N38: =+IF(C38="","",IF(J38="","SIN RESPUESTA",(IF(J38<=M38,"A TIEMPO","FUERA DE TIEMPO")))) -> A TIEMPO | O38: =IF(J38="","",NETWORKDAYS(C38+1,J38,DiasNOLaborables)) -> 6 | S38: 20 | AA38: GRUPO DE TESORERÍA | AF38: 2021-04-11
A39: 28 | B39: 20219050039892 | C39: 2021-04-03 | D39: EMPRESA PRIVADA | E39: CORREO ELECTRÓNICO | F39: SOLICITUD DE INFORMACIÓN Y DOCUMENTOS | G39: REGISTROS AMBIENTALES | H39: SI | I39: SUBDIRECCIÓN DE ESTUDIOS AMBIENTALES | J39: 2021-04-12 | K39: CORREO ELECTRÓNICO | M39: =IFERROR(WORKDAY(C39,S38,DiasNOLaborables),"") -> 2021-04-30 | N39: =+IF(C39="","",IF(J39="","SIN RESPUESTA",(IF(J39<=M39,"A TIEMPO","FUERA DE TIEMPO")))) -> A TIEMPO | O39: =IF(J39="","",NETWORKDAYS(C39+1,J39,DiasNOLaborables)) -> 6 | S39: 20 | AA39: OFICINA ASESORA DE PLANEACIÓN | AF39: 2021-04-17
A40: 29 | B40: 20219050039702 | C40: 2021-04-03 | D40: CIUDADANO | E40: MODULO CONTACTENOS | F40: SOLICITUD DE INFORMACIÓN Y DOCUMENTOS | G40: SOLICITUD DE INFORMACIÓN HIDROMETEOROLÓGICA | H40: NO | I40: GRUPO DE SERVICIO AL CIUDADANO | J40: 2021-04-30 | K40: CORREO ELECTRÓNICO | M40: =IFERROR(WORKDAY(C40,S39,DiasNOLaborables),"") -> 2021-04-30 | N40: =+IF(C40="","",IF(J40="","SIN RESPUESTA",(IF(J40<=M40,"A TIEMPO","FUERA DE TIEMPO")))) -> A TIEMPO | O40: =IF(J40="","",NETWORKDAYS(C40+1,J40,DiasNOLaborables)) -> 20 | S40: 20 | AA40: OFICINA ASESORA JURÍDICA | AF40: 2021-04-18
A41: 30 | B41: 20219050039732 | C41: 2021-04-03 | D41: ACADEMIA | E41: MODULO CONTACTENOS | F41: SOLICITUD DE INFORMACIÓN Y DOCUMENTOS | G41: SOLICITUD DE INFORMACIÓN HIDROMETEOROLÓGICA | H41: NO | I41: GRUPO DE SERVICIO AL CIUDADANO | J41: 2021-04-30 | K41: CORREO ELECTRÓNICO | M41: =IFERROR(WORKDAY(C41,S40,DiasNOLaborables),"") -> 2021-04-30 | N41: =+IF(C41="","",IF(J41="","SIN RESPUESTA",(IF(J41<=M41,"A TIEMPO","FUERA DE TIEMPO")))) -> A TIEMPO | O41: =IF(J41="","",NETWORKDAYS(C41+1,J41,DiasNOLaborables)) -> 20 | S41: 20 | AA41: OFICINA DE CONTROL INTERNO | AF41: 2021-04-24
A42: 31 | B42: 20219050039742 | C42: 2021-04-03 | D42: CIUDADANO | E42: MODULO CONTACTENOS | F42: SOLICITUD DE INFORMACIÓN Y DOCUMENTOS | G42: SOLICITUD DE INFORMACIÓN HIDROMETEOROLÓGICA | H42: NO | I42: GRUPO DE SERVICIO AL CIUDADANO | J42: 2021-04-30 | K42: CORREO ELECTRÓNICO | M42: =IFERROR(WORKDAY(C42,S41,DiasNOLaborables),"") -> 2021-04-30 | N42: =+IF(C42="","",IF(J42="","SIN RESPUESTA",(IF(J42<=M42,"A TIEMPO","FUERA DE TIEMPO")))) -> A TIEMPO | O42: =IF(J42="","",NETWORKDAYS(C42+1,J42,DiasNOLaborables)) -> 20 | S42: 20 | AA42: OFICINA DE INFORMÁTICA | AF42: 2021-04-25
A43: 32 | B43: 20219050039752 | C43: 2021-04-03 | D43: ACADEMIA | E43: MODULO CONTACTENOS | F43: SOLICITUD DE INFORMACIÓN Y DOCUMENTOS | G43: SOLICITUD DE INFORMACIÓN HIDROMETEOROLÓGICA | H43: NO | I43: GRUPO DE SERVICIO AL CIUDADANO | J43: 2021-04-30 | K43: CORREO ELECTRÓNICO | M43: =IFERROR(WORKDAY(C43,S42,DiasNOLaborables),"") -> 2021-04-30 | N43: =+IF(C43="","",IF(J43="","SIN RESPUESTA",(IF(J43<=M43,"A TIEMPO","FUERA DE TIEMPO")))) -> A TIEMPO | O43: =IF(J43="","",NETWORKDAYS([5]Hoja1!C41+1,[5]Hoja1!P41,DiasNOLaborables)) -> 6 | S43: 20 | AA43: OFICINA DEL SERVICIO DE PRONÓSTICOS Y ALERTAS | AF43: 2021-05-01
A44: 33 | B44: 20219050039792 | C44: 2021-04-03 | D44: CIUDADANO | E44: MODULO CONTACTENOS | F44: SOLICITUD DE INFORMACIÓN Y DOCUMENTOS | G44: SOLICITUD DE INFORMACIÓN HIDROMETEOROLÓGICA | H44: NO | I44: GRUPO DE SERVICIO AL CIUDADANO | J44: 2021-04-30 | K44: CORREO ELECTRÓNICO | M44: =IFERROR(WORKDAY(C44,S43,DiasNOLaborables),"") -> 2021-04-30 | N44: =+IF(C44="","",IF(J44="","SIN RESPUESTA",(IF(J44<=M44,"A TIEMPO","FUERA DE TIEMPO")))) -> A TIEMPO | O44: =IF(J44="","",NETWORKDAYS(C44+1,J44,DiasNOLaborables)) -> 20 | S44: 20 | AA44: SECRETARÍA GENERAL | AF44: 2021-05-02
A45: 34 | B45: 20219050039832 | C45: 2021-04-03 | D45: ACADEMIA | E45: MODULO CONTACTENOS | F45: SOLICITUD DE INFORMACIÓN Y DOCUMENTOS | G45: SOLICITUD DE INFORMACIÓN HIDROMETEOROLÓGICA | H45: NO | I45: GRUPO DE SERVICIO AL CIUDADANO | J45: 2021-04-30 | K45: CORREO ELECTRÓNICO | M45: =IFERROR(WORKDAY(C45,S44,DiasNOLaborables),"") -> 2021-04-30 | N45: =+IF(C45="","",IF(J45="","SIN RESPUESTA",(IF(J45<=M45,"A TIEMPO","FUERA DE TIEMPO")))) -> A TIEMPO | O45: =IF(J45="","",NETWORKDAYS(C45+1,J45,DiasNOLaborables)) -> 20 | S45: 20 | AA45: SUBDIRECCIÓN DE ECOSISTEMAS E INFORMACIÓN AMBIENTAL | AF45: 2021-05-08
A46: 35 | B46: 20219050039842 | C46: 2021-04-03 | D46: CIUDADANO | E46: MODULO CONTACTENOS | F46: SOLICITUD DE INFORMACIÓN Y DOCUMENTOS | G46: SOLICITUD DE INFORMACIÓN HIDROMETEOROLÓGICA | H46: NO | I46: GRUPO DE SERVICIO AL CIUDADANO | J46: 2021-04-30 | K46: CORREO ELECTRÓNICO | M46: =IFERROR(WORKDAY(C46,S45,DiasNOLaborables),"") -> 2021-04-30 | N46: =+IF(C46="","",IF(J46="","SIN RESPUESTA",(IF(J46<=M46,"A TIEMPO","FUERA DE TIEMPO")))) -> A TIEMPO | O46: =IF(J46="","",NETWORKDAYS(C46+1,J46,DiasNOLaborables)) -> 20 | S46: 20 | AA46: SUBDIRECCIÓN DE ESTUDIOS AMBIENTALES | AF46: 2021-05-09
A47: 36 | B47: 20219050040352 | C47: 2021-04-04 | D47: CIUDADANO | E47: MODULO CONTACTENOS | F47: SOLICITUD DE INFORMACIÓN Y DOCUMENTOS | G47: SOLICITUD DE INFORMACIÓN HIDROMETEOROLÓGICA | H47: NO | I47: GRUPO DE SERVICIO AL CIUDADANO | J47: 2021-04-30 | K47: CORREO ELECTRÓNICO | M47: =IFERROR(WORKDAY(C47,S46,DiasNOLaborables),"") -> 2021-04-30 | N47: =+IF(C47="","",IF(J47="","SIN RESPUESTA",(IF(J47<=M47,"A TIEMPO","FUERA DE TIEMPO")))) -> A TIEMPO | O47: =IF(J47="","",NETWORKDAYS(C47+1,J47,DiasNOLaborables)) -> 20 | S47: 20 | AA47: SUBDIRECCIÓN DE HIDROLOGÍA | AF47: 2021-05-15
A48: 37 | B48: 20219050040372 | C48: 2021-04-04 | D48: CIUDADANO | E48: MODULO CONTACTENOS | F48: SOLICITUD DE INFORMACIÓN Y DOCUMENTOS | G48: SOLICITUD DE INFORMACIÓN HIDROMETEOROLÓGICA | H48: NO | I48: GRUPO DE SERVICIO AL CIUDADANO | J48: 2021-04-30 | K48: CORREO ELECTRÓNICO | M48: =IFERROR(WORKDAY(C48,S47,DiasNOLaborables),"") -> 2021-04-30 | N48: =+IF(C48="","",IF(J48="","SIN RESPUESTA",(IF(J48<=M48,"A TIEMPO","FUERA DE TIEMPO")))) -> A TIEMPO | O48: =IF(J48="","",NETWORKDAYS(C48+1,J48,DiasNOLaborables)) -> 20 | S48: 20 | AA48: SUBDIRECCIÓN DE METEOROLOGÍA | AF48: 2021-05-16
A49: 38 | B49: 20219050040412 | C49: 2021-04-04 | D49: CIUDADANO | E49: MODULO CONTACTENOS | F49: SOLICITUD DE INFORMACIÓN Y DOCUMENTOS | G49: SOLICITUD DE INFORMACIÓN HIDROMETEOROLÓGICA | H49: NO | I49: GRUPO DE SERVICIO AL CIUDADANO | J49: 2021-04-30 | K49: CORREO ELECTRÓNICO | M49: =IFERROR(WORKDAY(C49,S48,DiasNOLaborables),"") -> 2021-04-30 | N49: =+IF(C49="","",IF(J49="","SIN RESPUESTA",(IF(J49<=M49,"A TIEMPO","FUERA DE TIEMPO")))) -> A TIEMPO | O49: =IF(J49="","",NETWORKDAYS(C49+1,J49,DiasNOLaborables)) -> 20 | S49: 20 | AF49: 2021-05-17
A50: 39 | B50: 20219050040462 | C50: 2021-04-04 | D50: CIUDADANO | E50: MODULO CONTACTENOS | F50: SOLICITUD DE INFORMACIÓN Y DOCUMENTOS | G50: SOLICITUD DE INFORMACIÓN HIDROMETEOROLÓGICA | H50: NO | I50: GRUPO DE SERVICIO AL CIUDADANO | J50: 2021-04-30 | K50: CORREO ELECTRÓNICO | M50: =IFERROR(WORKDAY(C50,S49,DiasNOLaborables),"") -> 2021-04-30 | N50: =+IF(C50="","",IF(J50="","SIN RESPUESTA",(IF(J50<=M50,"A TIEMPO","FUERA DE TIEMPO")))) -> A TIEMPO | O50: =IF(J50="","",NETWORKDAYS(C50+1,J50,DiasNOLaborables)) -> 20 | S50: 20 | AA50: TIPO DE REQUERIMIENTO | AB50: Término | AF50: 2021-05-22
A51: 40 | B51: 20219050039912 | C51: 2021-04-04 | D51: ACADEMIA | E51: MODULO CONTACTENOS | F51: SOLICITUD DE INFORMACIÓN Y DOCUMENTOS | G51: SOLICITUD DE INFORMACIÓN HIDROMETEOROLÓGICA | H51: NO | I51: GRUPO DE SERVICIO AL CIUDADANO | J51: 2021-04-30 | K51: CORREO ELECTRÓNICO | M51: =IFERROR(WORKDAY(C51,S50,DiasNOLaborables),"") -> 2021-04-30 | N51: =+IF(C51="","",IF(J51="","SIN RESPUESTA",(IF(J51<=M51,"A TIEMPO","FUERA DE TIEMPO")))) -> A TIEMPO | O51: =IF(J51="","",NETWORKDAYS(C51+1,J51,DiasNOLaborables)) -> 20 | S51: 20 | AA51: AGRADECIMIENTO/FELICITACION | AB51: 15 | AF51: 2021-05-23
A52: 41 | B52: 20219050040032 | C52: 2021-04-04 | D52: CIUDADANO | E52: MODULO CONTACTENOS | F52: SOLICITUD DE INFORMACIÓN Y DOCUMENTOS | G52: SOLICITUD DE INFORMACIÓN HIDROMETEOROLÓGICA | H52: NO | I52: GRUPO DE SERVICIO AL CIUDADANO | J52: 2021-04-30 | K52: CORREO ELECTRÓNICO | M52: =IFERROR(WORKDAY(C52,S51,DiasNOLaborables),"") -> 2021-04-30 | N52: =+IF(C52="","",IF(J52="","SIN RESPUESTA",(IF(J52<=M52,"A TIEMPO","FUERA DE TIEMPO")))) -> A TIEMPO | O52: =IF(J52="","",NETWORKDAYS(C52+1,J52,DiasNOLaborables)) -> 20 | S52: 20 | AA52: CERTIFICACIONES DE TIEMPO, CLIMA Y EVENTOS HIDROLÓGICOS | AB52: 35 | AF52: 2021-05-29
A53: 42 | B53: 20219050040072 | C53: 2021-04-04 | D53: ACADEMIA | E53: MODULO CONTACTENOS | F53: SOLICITUD DE INFORMACIÓN Y DOCUMENTOS | G53: SOLICITUD DE INFORMACIÓN HIDROMETEOROLÓGICA | H53: NO | I53: GRUPO DE SERVICIO AL CIUDADANO | J53: 2021-04-30 | K53: CORREO ELECTRÓNICO | M53: =IFERROR(WORKDAY(C53,S52,DiasNOLaborables),"") -> 2021-04-30 | N53: =+IF(C53="","",IF(J53="","SIN RESPUESTA",(IF(J53<=M53,"A TIEMPO","FUERA DE TIEMPO")))) -> A TIEMPO | O53: =IF(J53="","",NETWORKDAYS(C53+1,J53,DiasNOLaborables)) -> 20 | S53: 20 | AA53: CONSULTA | AB53: 35 | AF53: 2021-05-30
A54: 43 | B54: 20219050040082 | C54: 2021-04-04 | D54: ACADEMIA | E54: MODULO CONTACTENOS | F54: SOLICITUD DE INFORMACIÓN Y DOCUMENTOS | G54: SOLICITUD DE INFORMACIÓN HIDROMETEOROLÓGICA | H54: NO | I54: GRUPO DE SERVICIO AL CIUDADANO | J54: 2021-04-30 | K54: CORREO ELECTRÓNICO | M54: =IFERROR(WORKDAY(C54,S53,DiasNOLaborables),"") -> 2021-04-30 | N54: =+IF(C54="","",IF(J54="","SIN RESPUESTA",(IF(J54<=M54,"A TIEMPO","FUERA DE TIEMPO")))) -> A TIEMPO | O54: =IF(J54="","",NETWORKDAYS(C54+1,J54,DiasNOLaborables)) -> 20 | S54: 20 | AA54: DENUNCIA | AB54: 15 | AF54: 2021-06-05
A55: 44 | B55: 20219050040132 | C55: 2021-04-04 | D55: ACADEMIA | E55: MODULO CONTACTENOS | F55: SOLICITUD DE INFORMACIÓN Y DOCUMENTOS | G55: SOLICITUD DE INFORMACIÓN HIDROMETEOROLÓGICA | H55: NO | I55: GRUPO DE SERVICIO AL CIUDADANO | J55: 2021-04-30 | K55: CORREO ELECTRÓNICO | M55: =IFERROR(WORKDAY(C55,S54,DiasNOLaborables),"") -> 2021-04-30 | N55: =+IF(C55="","",IF(J55="","SIN RESPUESTA",(IF(J55<=M55,"A TIEMPO","FUERA DE TIEMPO")))) -> A TIEMPO | O55: =IF(J55="","",NETWORKDAYS(C55+1,J55,DiasNOLaborables)) -> 20 | S55: 20 | AA55: PETICIÓN | AB55: 30 | AF55: 2021-06-06
A56: 45 | B56: 20219050040142 | C56: 2021-04-04 | D56: ACADEMIA | E56: MODULO CONTACTENOS | F56: SOLICITUD DE INFORMACIÓN Y DOCUMENTOS | G56: SOLICITUD DE INFORMACIÓN HIDROMETEOROLÓGICA | H56: NO | I56: GRUPO DE SERVICIO AL CIUDADANO | J56: 2021-04-30 | K56: CORREO ELECTRÓNICO | M56: =IFERROR(WORKDAY(C56,S55,DiasNOLaborables),"") -> 2021-04-30 | N56: =+IF(C56="","",IF(J56="","SIN RESPUESTA",(IF(J56<=M56,"A TIEMPO","FUERA DE TIEMPO")))) -> A TIEMPO | O56: =IF(J56="","",NETWORKDAYS(C56+1,J56,DiasNOLaborables)) -> 20 | S56: 20 | AA56: PETICIÓN ENTRE AUTORIDADES | AB56: 10 | AF56: 2021-06-07
A57: 46 | B57: 20219050040162 | C57: 2021-04-04 | D57: ACADEMIA | E57: MODULO CONTACTENOS | F57: SOLICITUD DE INFORMACIÓN Y DOCUMENTOS | G57: SOLICITUD DE INFORMACIÓN HIDROMETEOROLÓGICA | H57: NO | I57: GRUPO DE SERVICIO AL CIUDADANO | J57: 2021-04-30 | K57: CORREO ELECTRÓNICO | M57: =IFERROR(WORKDAY(C57,S56,DiasNOLaborables),"") -> 2021-04-30 | N57: =+IF(C57="","",IF(J57="","SIN RESPUESTA",(IF(J57<=M57,"A TIEMPO","FUERA DE TIEMPO")))) -> A TIEMPO | O57: =IF(J57="","",NETWORKDAYS(C57+1,J57,DiasNOLaborables)) -> 20 | S57: 20 | AA57: PETICION VERBAL | AB57: 15 | AF57: 2021-06-12
A58: 47 | B58: 20219050040242 | C58: 2021-04-04 | D58: CIUDADANO | E58: MODULO CONTACTENOS | F58: SOLICITUD DE INFORMACIÓN Y DOCUMENTOS | G58: SOLICITUD DE INFORMACIÓN HIDROMETEOROLÓGICA | H58: NO | I58: GRUPO DE SERVICIO AL CIUDADANO | J58: 2021-04-30 | K58: CORREO ELECTRÓNICO | M58: =IFERROR(WORKDAY(C58,S57,DiasNOLaborables),"") -> 2021-04-30 | N58: =+IF(C58="","",IF(J58="","SIN RESPUESTA",(IF(J58<=M58,"A TIEMPO","FUERA DE TIEMPO")))) -> A TIEMPO | O58: =IF(J58="","",NETWORKDAYS(C58+1,J58,DiasNOLaborables)) -> 20 | S58: 20 | AA58: QUEJA | AB58: 15 | AF58: 2021-06-13
A59: 48 | B59: 20219050040442 | C59: 2021-04-04 | D59: ACADEMIA | E59: MODULO CONTACTENOS | F59: SOLICITUD DE INFORMACIÓN Y DOCUMENTOS | G59: SOLICITUD DE INFORMACIÓN HIDROMETEOROLÓGICA | H59: NO | I59: GRUPO DE SERVICIO AL CIUDADANO | J59: 2021-04-30 | K59: CORREO ELECTRÓNICO | M59: =IFERROR(WORKDAY(C59,S58,DiasNOLaborables),"") -> 2021-04-30 | N59: =+IF(C59="","",IF(J59="","SIN RESPUESTA",(IF(J59<=M59,"A TIEMPO","FUERA DE TIEMPO")))) -> A TIEMPO | O59: =IF(J59="","",NETWORKDAYS(C59+1,J59,DiasNOLaborables)) -> 20 | S59: 20 | AA59: RECLAMO | AB59: 15 | AF59: 2021-06-14
A60: 49 | B60: 20219050040452 | C60: 2021-04-04 | D60: ACADEMIA | E60: MODULO CONTACTENOS | F60: SOLICITUD DE INFORMACIÓN Y DOCUMENTOS | G60: SOLICITUD DE INFORMACIÓN HIDROMETEOROLÓGICA | H60: NO | I60: GRUPO DE SERVICIO AL CIUDADANO | J60: 2021-04-30 | K60: CORREO ELECTRÓNICO | M60: =IFERROR(WORKDAY(C60,S59,DiasNOLaborables),"") -> 2021-04-30 | N60: =+IF(C60="","",IF(J60="","SIN RESPUESTA",(IF(J60<=M60,"A TIEMPO","FUERA DE TIEMPO")))) -> A TIEMPO | O60: =IF(J60="","",NETWORKDAYS(C60+1,J60,DiasNOLaborables)) -> 20 | S60: 20 | AA60: REMISIÓN POR COMPETENCIA | AB60: 5 | AF60: 2021-06-19
A61: 50 | B61: 20219050039922 | C61: 2021-04-04 | D61: EMPRESA PRIVADA | E61: CORREO ELECTRÓNICO | F61: SOLICITUD DE INFORMACIÓN Y DOCUMENTOS | G61: REGISTROS AMBIENTALES | H61: SI | I61: SUBDIRECCIÓN DE ESTUDIOS AMBIENTALES | J61: 2021-04-05 | K61: CORREO ELECTRÓNICO | M61: =IFERROR(WORKDAY(C61,S60,DiasNOLaborables),"") -> 2021-04-30 | N61: =+IF(C61="","",IF(J61="","SIN RESPUESTA",(IF(J61<=M61,"A TIEMPO","FUERA DE TIEMPO")))) -> A TIEMPO | O61: =IF(J61="","",NETWORKDAYS(C61+1,J61,DiasNOLaborables)) -> 1 | S61: 20 | AA61: SOLICITUD CONGRESITAS | AB61: 5 | AF61: 2021-06-20
A62: 51 | B62: 20219050039932 | C62: 2021-04-04 | D62: EMPRESA PRIVADA | E62: CORREO ELECTRÓNICO | F62: SOLICITUD DE INFORMACIÓN Y DOCUMENTOS | G62: REGISTROS AMBIENTALES | H62: SI | I62: SUBDIRECCIÓN DE ESTUDIOS AMBIENTALES | J62: 2021-04-12 | K62: CORREO ELECTRÓNICO | M62: =IFERROR(WORKDAY(C62,S61,DiasNOLaborables),"") -> 2021-04-30 | N62: =+IF(C62="","",IF(J62="","SIN RESPUESTA",(IF(J62<=M62,"A TIEMPO","FUERA DE TIEMPO")))) -> A TIEMPO | O62: =IF(J62="","",NETWORKDAYS(C62+1,J62,DiasNOLaborables)) -> 6 | S62: 20 | AA62: SOLICITUD DE INFORMACIÓN Y DOCUMENTOS | AB62: 20 | AF62: 2021-06-26
A63: 52 | B63: 20219050039942 | C63: 2021-04-04 | D63: EMPRESA PRIVADA | E63: CORREO ELECTRÓNICO | F63: SOLICITUD DE INFORMACIÓN Y DOCUMENTOS | G63: REGISTROS AMBIENTALES | H63: SI | I63: SUBDIRECCIÓN DE ESTUDIOS AMBIENTALES | J63: 2021-04-05 | K63: CORREO ELECTRÓNICO | M63: =IFERROR(WORKDAY(C63,S62,DiasNOLaborables),"") -> 2021-04-30 | N63: =+IF(C63="","",IF(J63="","SIN RESPUESTA",(IF(J63<=M63,"A TIEMPO","FUERA DE TIEMPO")))) -> A TIEMPO | O63: =IF(J63="","",NETWORKDAYS(C63+1,J63,DiasNOLaborables)) -> 1 | S63: 20 | AA63: SOLICITUD JUDICIAL | AB63: 5 | AF63: 2021-06-27
A64: 53 | B64: 20219050039952 | C64: 2021-04-04 | D64: EMPRESA PRIVADA | E64: CORREO ELECTRÓNICO | F64: SOLICITUD DE INFORMACIÓN Y DOCUMENTOS | G64: REGISTROS AMBIENTALES | H64: SI | I64: SUBDIRECCIÓN DE ESTUDIOS AMBIENTALES | J64: 2021-04-12 | K64: CORREO ELECTRÓNICO | M64: =IFERROR(WORKDAY(C64,S63,DiasNOLaborables),"") -> 2021-04-30 | N64: =+IF(C64="","",IF(J64="","SIN RESPUESTA",(IF(J64<=M64,"A TIEMPO","FUERA DE TIEMPO")))) -> A TIEMPO | O64: =IF(J64="","",NETWORKDAYS(C64+1,J64,DiasNOLaborables)) -> 6 | S64: 20 | AA64: SUGERENCIA | AB64: 15 | AF64: 2021-07-03
A65: 54 | B65: 20219050039962 | C65: 2021-04-04 | D65: EMPRESA PRIVADA | E65: CORREO ELECTRÓNICO | F65: SOLICITUD DE INFORMACIÓN Y DOCUMENTOS | G65: REGISTROS AMBIENTALES | H65: SI | I65: SUBDIRECCIÓN DE ESTUDIOS AMBIENTALES | J65: 2021-04-07 | K65: CORREO ELECTRÓNICO | M65: =IFERROR(WORKDAY(C65,S64,DiasNOLaborables),"") -> 2021-04-30 | N65: =+IF(C65="","",IF(J65="","SIN RESPUESTA",(IF(J65<=M65,"A TIEMPO","FUERA DE TIEMPO")))) -> A TIEMPO | O65: =IF(J65="","",NETWORKDAYS(C65+1,J65,DiasNOLaborables)) -> 3 | S65: 20 | AF65: 2021-07-04
A66: 55 | B66: 20219050039972 | C66: 2021-04-04 | D66: EMPRESA PRIVADA | E66: CORREO ELECTRÓNICO | F66: SOLICITUD DE INFORMACIÓN Y DOCUMENTOS | G66: REGISTROS AMBIENTALES | H66: SI | I66: SUBDIRECCIÓN DE ESTUDIOS AMBIENTALES | J66: 2021-04-07 | K66: CORREO ELECTRÓNICO | M66: =IFERROR(WORKDAY(C66,S65,DiasNOLaborables),"") -> 2021-04-30 | N66: =+IF(C66="","",IF(J66="","SIN RESPUESTA",(IF(J66<=M66,"A TIEMPO","FUERA DE TIEMPO")))) -> A TIEMPO | O66: =IF(J66="","",NETWORKDAYS(C66+1,J66,DiasNOLaborables)) -> 3 | S66: 20 | AA66: PRODUCTO O SERVICIO | AF66: 2021-07-05
A67: 56 | B67: 20219050039982 | C67: 2021-04-04 | D67: EMPRESA PRIVADA | E67: CORREO ELECTRÓNICO | F67: SOLICITUD DE INFORMACIÓN Y DOCUMENTOS | G67: REGISTROS AMBIENTALES | H67: SI | I67: SUBDIRECCIÓN DE ESTUDIOS AMBIENTALES | J67: 2021-04-12 | K67: CORREO ELECTRÓNICO | M67: =IFERROR(WORKDAY(C67,S66,DiasNOLaborables),"") -> 2021-04-30 | N67: =+IF(C67="","",IF(J67="","SIN RESPUESTA",(IF(J67<=M67,"A TIEMPO","FUERA DE TIEMPO")))) -> A TIEMPO | O67: =IF(J67="","",NETWORKDAYS(C67+1,J67,DiasNOLaborables)) -> 6 | S67: 20 | AA67: ACREDITACIÓN DE LABORATORIOS | AF67: 2021-07-10
A68: 57 | B68: 20219050039992 | C68: 2021-04-04 | D68: EMPRESA PRIVADA | E68: CORREO ELECTRÓNICO | F68: SOLICITUD DE INFORMACIÓN Y DOCUMENTOS | G68: REGISTROS AMBIENTALES | H68: SI | I68: SUBDIRECCIÓN DE ESTUDIOS AMBIENTALES | J68: 2021-04-07 | K68: CORREO ELECTRÓNICO | M68: =IFERROR(WORKDAY(C68,S67,DiasNOLaborables),"") -> 2021-04-30 | N68: =+IF(C68="","",IF(J68="","SIN RESPUESTA",(IF(J68<=M68,"A TIEMPO","FUERA DE TIEMPO")))) -> A TIEMPO | O68: =IF(J68="","",NETWORKDAYS(C68+1,J68,DiasNOLaborables)) -> 3 | S68: 20 | AA68: ADMINISTRATIVA | AF68: 2021-07-11
A69: 58 | B69: 20219050040002 | C69: 2021-04-04 | D69: EMPRESA PRIVADA | E69: CORREO ELECTRÓNICO | F69: SOLICITUD DE INFORMACIÓN Y DOCUMENTOS | G69: REGISTROS AMBIENTALES | H69: SI | I69: SUBDIRECCIÓN DE ESTUDIOS AMBIENTALES | J69: 2021-04-12 | K69: CORREO ELECTRÓNICO | M69: =IFERROR(WORKDAY(C69,S68,DiasNOLaborables),"") -> 2021-04-30 | N69: =+IF(C69="","",IF(J69="","SIN RESPUESTA",(IF(J69<=M69,"A TIEMPO","FUERA DE TIEMPO")))) -> A TIEMPO | O69: =IF(J69="","",NETWORKDAYS(C69+1,J69,DiasNOLaborables)) -> 6 | S69: 20 | AA69: AGUAS SUBTERRANEAS | AF69: 2021-07-17
A70: 59 | B70: 20219050040012 | C70: 2021-04-04 | D70: EMPRESA PRIVADA | E70: CORREO ELECTRÓNICO | F70: SOLICITUD DE INFORMACIÓN Y DOCUMENTOS | G70: REGISTROS AMBIENTALES | H70: SI | I70: SUBDIRECCIÓN DE ESTUDIOS AMBIENTALES | J70: 2021-04-07 | K70: CORREO ELECTRÓNICO | M70: =IFERROR(WORKDAY(C70,S69,DiasNOLaborables),"") -> 2021-04-30 | N70: =+IF(C70="","",IF(J70="","SIN RESPUESTA",(IF(J70<=M70,"A TIEMPO","FUERA DE TIEMPO")))) -> A TIEMPO | O70: =IF(J70="","",NETWORKDAYS(C70+1,J70,DiasNOLaborables)) -> 3 | S70: 20 | AA70: ASESORÍAS Y CHARLAS | AF70: 2021-07-18
A71: 60 | B71: 20219050040022 | C71: 2021-04-04 | D71: ENTIDAD PÚBLICA | E71: CORREO ELECTRÓNICO | F71: SOLICITUD DE INFORMACIÓN Y DOCUMENTOS | G71: REGISTROS AMBIENTALES | H71: SI | I71: SUBDIRECCIÓN DE ESTUDIOS AMBIENTALES | J71: 2021-04-07 | K71: CORREO ELECTRÓNICO | M71: =IFERROR(WORKDAY(C71,S70,DiasNOLaborables),"") -> 2021-04-30 | N71: =+IF(C71="","",IF(J71="","SIN RESPUESTA",(IF(J71<=M71,"A TIEMPO","FUERA DE TIEMPO")))) -> A TIEMPO | O71: =IF(J71="","",NETWORKDAYS(C71+1,J71,DiasNOLaborables)) -> 3 | S71: 20 | AA71: BOSQUES | AF71: 2021-07-20
A72: 61 | B72: 20219050040092 | C72: 2021-04-04 | D72: ONG/ORG | E72: CORREO ELECTRÓNICO | F72: SOLICITUD DE INFORMACIÓN Y DOCUMENTOS | G72: BOSQUES | H72: SI | I72: SUBDIRECCIÓN DE ECOSISTEMAS E INFORMACIÓN AMBIENTAL | J72: 2021-04-15 | K72: CORREO ELECTRÓNICO | M72: =IFERROR(WORKDAY(C72,S71,DiasNOLaborables),"") -> 2021-04-30 | N72: =+IF(C72="","",IF(J72="","SIN RESPUESTA",(IF(J72<=M72,"A TIEMPO","FUERA DE TIEMPO")))) -> A TIEMPO | O72: =IF(J72="","",NETWORKDAYS(C72+1,J72,DiasNOLaborables)) -> 9 | S72: 20 | AA72: CAMBIO CLIMÁTICO | AF72: 2021-07-24
A73: 62 | B73: 20219050040102 | C73: 2021-04-04 | D73: EMPRESA PRIVADA | E73: CORREO ELECTRÓNICO | F73: SOLICITUD DE INFORMACIÓN Y DOCUMENTOS | G73: REGISTROS AMBIENTALES | H73: SI | I73: SUBDIRECCIÓN DE ESTUDIOS AMBIENTALES | J73: 2021-04-04 | K73: CORREO ELECTRÓNICO | M73: =IFERROR(WORKDAY(C73,S72,DiasNOLaborables),"") -> 2021-04-30 | N73: =+IF(C73="","",IF(J73="","SIN RESPUESTA",(IF(J73<=M73,"A TIEMPO","FUERA DE TIEMPO")))) -> A TIEMPO | O73: =IF(J73="","",NETWORKDAYS(C73+1,J73,DiasNOLaborables)) -> -1 | S73: 20 | AA73: CERTIFICACIONES DE TIEMPO Y CLIMA | AF73: 2021-07-25
A74: 63 | B74: 20219050040112 | C74: 2021-04-04 | D74: ENTIDAD PÚBLICA | E74: CORREO ELECTRÓNICO | F74: SOLICITUD DE INFORMACIÓN Y DOCUMENTOS | G74: AGUAS SUBTERRANEAS | H74: SI | I74: SUBDIRECCIÓN DE HIDROLOGÍA | J74: 2021-04-21 | K74: CORREO ELECTRÓNICO | M74: =IFERROR(WORKDAY(C74,S73,DiasNOLaborables),"") -> 2021-04-30 | N74: =+IF(C74="","",IF(J74="","SIN RESPUESTA",(IF(J74<=M74,"A TIEMPO","FUERA DE TIEMPO")))) -> A TIEMPO | O74: =IF(J74="","",NETWORKDAYS([5]Hoja1!C72+1,[5]Hoja1!P72,DiasNOLaborables)) -> 10 | S74: 20 | AA74: CERTIFICACIONES HIDROLOGICAS | AF74: 2021-07-31
A75: 64 | B75: 20219050040122 | C75: 2021-04-04 | D75: ENTIDAD PÚBLICA | E75: CORREO ELECTRÓNICO | F75: SOLICITUD DE INFORMACIÓN Y DOCUMENTOS | G75: PRONÓSTICOS Y ALERTAS | H75: SI | I75: DIRECCIÓN GENERAL | J75: 2021-04-04 | K75: CORREO ELECTRÓNICO | M75: =IFERROR(WORKDAY(C75,S74,DiasNOLaborables),"") -> 2021-04-30 | N75: =+IF(C75="","",IF(J75="","SIN RESPUESTA",(IF(J75<=M75,"A TIEMPO","FUERA DE TIEMPO")))) -> A TIEMPO | O75: =IF(J75="","",NETWORKDAYS(C75+1,J75,DiasNOLaborables)) -> -1 | S75: 35 | AA75: CLIMATOLOGÍA | AF75: 2021-08-01
A76: 65 | B76: 20219050040152 | C76: 2021-04-04 | D76: EMPRESA PRIVADA | E76: CORREO ELECTRÓNICO | F76: CERTIFICACIONES DE TIEMPO, CLIMA Y EVENTOS HIDROLÓGICOS | G76: CERTIFICACIONES DE TIEMPO Y CLIMA | H76: SI | I76: SUBDIRECCIÓN DE METEOROLOGÍA | J76: 2021-04-14 | K76: CORREO ELECTRÓNICO | M76: =IFERROR(WORKDAY(C76,S75,DiasNOLaborables),"") -> 2021-05-24 | N76: =+IF(C76="","",IF(J76="","SIN RESPUESTA",(IF(J76<=M76,"A TIEMPO","FUERA DE TIEMPO")))) -> A TIEMPO | O76: =IF(J76="","",NETWORKDAYS(C76+1,J76,DiasNOLaborables)) -> 8 | S76: 20 | AA76: ERA | AB76: EVALUACIÓN REGIONAL DEL AGUA | AF76: 2021-08-07
A77: 66 | B77: 20219050040172 | C77: 2021-04-04 | D77: ENTIDAD PÚBLICA | E77: CORREO ELECTRÓNICO | F77: SOLICITUD DE INFORMACIÓN Y DOCUMENTOS | G77: REGISTROS AMBIENTALES | H77: SI | I77: SUBDIRECCIÓN DE ESTUDIOS AMBIENTALES | J77: 2021-04-08 | K77: CORREO ELECTRÓNICO | M77: =IFERROR(WORKDAY(C77,S76,DiasNOLaborables),"") -> 2021-04-30 | N77: =+IF(C77="","",IF(J77="","SIN RESPUESTA",(IF(J77<=M77,"A TIEMPO","FUERA DE TIEMPO")))) -> A TIEMPO | O77: =IF(J77="","",NETWORKDAYS(C77+1,J77,DiasNOLaborables)) -> 4 | S77: =IFERROR(VLOOKUP(F78,$AA$51:$AB$64,2),"") -> 35 | AA77: ESTUDIO NACIONAL DEL AGUA | AF77: 2021-08-08
A78: =IF(B78<>"",A77+1,"") -> 67 | B78: 20219050040182 | C78: 2021-04-04 | D78: EMPRESA PRIVADA | E78: CORREO ELECTRÓNICO | F78: CERTIFICACIONES DE TIEMPO, CLIMA Y EVENTOS HIDROLÓGICOS | G78: CERTIFICACIONES DE TIEMPO Y CLIMA | H78: SI | I78: SUBDIRECCIÓN DE METEOROLOGÍA | J78: 2021-04-14 | K78: CORREO ELECTRÓNICO | M78: =IFERROR(WORKDAY(C78,S77,DiasNOLaborables),"") -> 2021-05-24 | N78: =+IF(C78="","",IF(J78="","SIN RESPUESTA",(IF(J78<=M78,"A TIEMPO","FUERA DE TIEMPO")))) -> A TIEMPO | O78: =IF(J78="","",NETWORKDAYS(C78+1,J78,DiasNOLaborables)) -> 8 | S78: 20 | AA78: INFORMES AMBIENTALES | AF78: 2021-08-14
A79: 68 | B79: 20219050040192 | C79: 2021-04-04 | D79: ENTIDAD PÚBLICA | E79: CORREO ELECTRÓNICO | F79: SOLICITUD DE INFORMACIÓN Y DOCUMENTOS | G79: REGISTROS AMBIENTALES | H79: SI | I79: SUBDIRECCIÓN DE ESTUDIOS AMBIENTALES | J79: 2021-04-08 | K79: CORREO ELECTRÓNICO | M79: =IFERROR(WORKDAY(C79,S78,DiasNOLaborables),"") -> 2021-04-30 | N79: =+IF(C79="","",IF(J79="","SIN RESPUESTA",(IF(J79<=M79,"A TIEMPO","FUERA DE TIEMPO")))) -> A TIEMPO | O79: =IF(J79="","",NETWORKDAYS(C79+1,J79,DiasNOLaborables)) -> 4 | S79: 20 | AA79: JURIDICO | AF79: 2021-08-15
A80: 69 | B80: 20219050040202 | C80: 2021-04-04 | D80: EMPRESA PRIVADA | E80: CORREO ELECTRÓNICO | F80: SOLICITUD DE INFORMACIÓN Y DOCUMENTOS | G80: REGISTROS AMBIENTALES | H80: SI | I80: SUBDIRECCIÓN DE ESTUDIOS AMBIENTALES | J80: 2021-04-08 | K80: CORREO ELECTRÓNICO | M80: =IFERROR(WORKDAY(C80,S79,DiasNOLaborables),"") -> 2021-04-30 | N80: =+IF(C80="","",IF(J80="","SIN RESPUESTA",(IF(J80<=M80,"A TIEMPO","FUERA DE TIEMPO")))) -> A TIEMPO | O80: =IF(J80="","",NETWORKDAYS(C80+1,J80,DiasNOLaborables)) -> 4 | P80: =IF(NETWORKDAYS(M80+1,J80,DiasNOLaborables)<=0,"",NETWORKDAYS(M80+1,J80,DiasNOLaborables)) ->  | S80: 20 | AA80: LABORATORIO DE CALIDAD AMBIENTAL | AF80: 2021-08-16
A81: 70 | B81: 20219050040212 | C81: 2021-04-04 | D81: EMPRESA PRIVADA | E81: CORREO ELECTRÓNICO | F81: SOLICITUD DE INFORMACIÓN Y DOCUMENTOS | G81: REGISTROS AMBIENTALES | H81: SI | I81: SUBDIRECCIÓN DE ESTUDIOS AMBIENTALES | J81: 2021-04-08 | K81: CORREO ELECTRÓNICO | M81: =IFERROR(WORKDAY(C81,S80,DiasNOLaborables),"") -> 2021-04-30 | N81: =+IF(C81="","",IF(J81="","SIN RESPUESTA",(IF(J81<=M81,"A TIEMPO","FUERA DE TIEMPO")))) -> A TIEMPO | O81: =IF(J81="","",NETWORKDAYS(C81+1,J81,DiasNOLaborables)) -> 4 | S81: 30 | AA81: MEDIOS DE COMUNICACIÓN | AF81: 2021-08-21
A82: 71 | B82: 20219050040232 | C82: 2021-04-04 | D82: EMPRESA PRIVADA | E82: CORREO ELECTRÓNICO | F82: PETICIÓN | G82: ADMINISTRATIVA | H82: SI | I82: OFICINA ASESORA JURÍDICA | J82: 2021-04-04 | K82: CORREO ELECTRÓNICO | M82: =IFERROR(WORKDAY(C82,S81,DiasNOLaborables),"") -> 2021-05-14 | N82: =+IF(C82="","",IF(J82="","SIN RESPUESTA",(IF(J82<=M82,"A TIEMPO","FUERA DE TIEMPO")))) -> A TIEMPO | O82: =IF(J82="","",NETWORKDAYS(C82+1,J82,DiasNOLaborables)) -> -1 | S82: 20 | AA82: METEOROLOGÍA AERONAÚTICA | AF82: 2021-08-22
A83: 72 | B83: 20219050040252 | C83: 2021-04-04 | D83: CIUDADANO | E83: CORREO ELECTRÓNICO | F83: SOLICITUD DE INFORMACIÓN Y DOCUMENTOS | G83: ADMINISTRATIVA | H83: SI | I83: GRUPO DE GESTIÓN DOCUMENTAL Y CENTRO DE DOCUMENTACIÓN | J83: 2021-04-15 | K83: CORREO ELECTRÓNICO | M83: =IFERROR(WORKDAY(C83,S82,DiasNOLaborables),"") -> 2021-04-30 | N83: =+IF(C83="","",IF(J83="","SIN RESPUESTA",(IF(J83<=M83,"A TIEMPO","FUERA DE TIEMPO")))) -> A TIEMPO | O83: =IF(J83="","",NETWORKDAYS(C83+1,J83,DiasNOLaborables)) -> 9 | S83: 35 | AA83: MODELACIÓN HIDROLÓGICA | AF83: 2021-08-28
A84: 73 | B84: 20219050040262 | C84: 2021-04-04 | D84: ENTIDAD PÚBLICA | E84: CORREO ELECTRÓNICO | F84: CERTIFICACIONES DE TIEMPO, CLIMA Y EVENTOS HIDROLÓGICOS | G84: CERTIFICACIONES DE TIEMPO Y CLIMA | H84: SI | I84: SUBDIRECCIÓN DE METEOROLOGÍA | J84: 2021-04-14 | K84: CORREO ELECTRÓNICO | M84: =IFERROR(WORKDAY(C84,S83,DiasNOLaborables),"") -> 2021-05-24 | N84: =+IF(C84="","",IF(J84="","SIN RESPUESTA",(IF(J84<=M84,"A TIEMPO","FUERA DE TIEMPO")))) -> A TIEMPO | O84: =IF(J84="","",NETWORKDAYS(C84+1,J84,DiasNOLaborables)) -> 8 | S84: 20 | AA84: MODELAMIENTO METEOROLÓGICO | AF84: 2021-08-29
A85: 74 | B85: 20219050040272 | C85: 2021-04-04 | D85: EMPRESA PRIVADA | E85: CORREO ELECTRÓNICO | F85: SOLICITUD DE INFORMACIÓN Y DOCUMENTOS | G85: REGISTROS AMBIENTALES | H85: SI | I85: SUBDIRECCIÓN DE ESTUDIOS AMBIENTALES | J85: 2021-04-08 | K85: CORREO ELECTRÓNICO | M85: =IFERROR(WORKDAY(C85,S84,DiasNOLaborables),"") -> 2021-04-30 | N85: =+IF(C85="","",IF(J85="","SIN RESPUESTA",(IF(J85<=M85,"A TIEMPO","FUERA DE TIEMPO")))) -> A TIEMPO | O85: =IF(J85="","",NETWORKDAYS(C85+1,J85,DiasNOLaborables)) -> 4 | S85: 20 | AA85: OPERACIÓN DE REDES | AF85: 2021-09-04
A86: 75 | B86: 20219050040282 | C86: 2021-04-04 | D86: ENTIDAD PÚBLICA | E86: CORREO ELECTRÓNICO | F86: SOLICITUD DE INFORMACIÓN Y DOCUMENTOS | G86: REGISTROS AMBIENTALES | H86: SI | I86: SUBDIRECCIÓN DE ESTUDIOS AMBIENTALES | J86: 2021-04-08 | K86: CORREO ELECTRÓNICO | M86: =IFERROR(WORKDAY(C86,S85,DiasNOLaborables),"") -> 2021-04-30 | N86: =+IF(C86="","",IF(J86="","SIN RESPUESTA",(IF(J86<=M86,"A TIEMPO","FUERA DE TIEMPO")))) -> A TIEMPO | O86: =IF(J86="","",NETWORKDAYS(C86+1,J86,DiasNOLaborables)) -> 4 | S86: 20 | AA86: PRONÓSTICOS Y ALERTAS | AF86: 2021-09-05
A87: 76 | B87: 20219050040292 | C87: 2021-04-04 | D87: EMPRESA PRIVADA | E87: CORREO ELECTRÓNICO | F87: SOLICITUD DE INFORMACIÓN Y DOCUMENTOS | G87: REGISTROS AMBIENTALES | H87: SI | I87: SUBDIRECCIÓN DE ESTUDIOS AMBIENTALES | J87: 2021-04-08 | K87: CORREO ELECTRÓNICO | M87: =IFERROR(WORKDAY(C87,S86,DiasNOLaborables),"") -> 2021-04-30 | N87: =+IF(C87="","",IF(J87="","SIN RESPUESTA",(IF(J87<=M87,"A TIEMPO","FUERA DE TIEMPO")))) -> A TIEMPO | O87: =IF(J87="","",NETWORKDAYS(C87+1,J87,DiasNOLaborables)) -> 4 | S87: 20 | AA87: REGISTROS AMBIENTALES | AF87: 2021-09-11
A88: 77 | B88: 20219050040302 | C88: 2021-04-04 | D88: EMPRESA PRIVADA | E88: CORREO ELECTRÓNICO | F88: SOLICITUD DE INFORMACIÓN Y DOCUMENTOS | G88: REGISTROS AMBIENTALES | H88: SI | I88: SUBDIRECCIÓN DE ESTUDIOS AMBIENTALES | J88: 2021-04-06 | K88: CORREO ELECTRÓNICO | M88: =IFERROR(WORKDAY(C88,S87,DiasNOLaborables),"") -> 2021-04-30 | N88: =+IF(C88="","",IF(J88="","SIN RESPUESTA",(IF(J88<=M88,"A TIEMPO","FUERA DE TIEMPO")))) -> A TIEMPO | O88: =IF(J88="","",NETWORKDAYS(C88+1,J88,DiasNOLaborables)) -> 2 | S88: 35 | AA88: SEDIMENTOS | AF88: 2021-09-12
A89: 78 | B89: 20219050040322 | C89: 2021-04-04 | D89: EMPRESA PRIVADA | E89: CORREO ELECTRÓNICO | F89: CERTIFICACIONES DE TIEMPO, CLIMA Y EVENTOS HIDROLÓGICOS | G89: CERTIFICACIONES DE TIEMPO Y CLIMA | H89: SI | I89: SUBDIRECCIÓN DE METEOROLOGÍA | J89: 2021-04-16 | K89: CORREO ELECTRÓNICO | M89: =IFERROR(WORKDAY(C89,S88,DiasNOLaborables),"") -> 2021-05-24 | N89: =+IF(C89="","",IF(J89="","SIN RESPUESTA",(IF(J89<=M89,"A TIEMPO","FUERA DE TIEMPO")))) -> A TIEMPO | O89: =IF(J89="","",NETWORKDAYS(C89+1,J89,DiasNOLaborables)) -> 10 | S89: 35 | AA89: SIA | AB89: SISTEMA DE INFORMACIÓN AMBIENTAL | AF89: 2021-09-18
A90: 79 | B90: 20219050040332 | C90: 2021-04-04 | D90: EMPRESA PRIVADA | E90: CORREO ELECTRÓNICO | F90: CERTIFICACIONES DE TIEMPO, CLIMA Y EVENTOS HIDROLÓGICOS | G90: CERTIFICACIONES DE TIEMPO Y CLIMA | H90: SI | I90: SUBDIRECCIÓN DE METEOROLOGÍA | J90: 2021-04-16 | K90: CORREO ELECTRÓNICO | M90: =IFERROR(WORKDAY(C90,S89,DiasNOLaborables),"") -> 2021-05-24 | N90: =+IF(C90="","",IF(J90="","SIN RESPUESTA",(IF(J90<=M90,"A TIEMPO","FUERA DE TIEMPO")))) -> A TIEMPO | O90: =IF(J90="","",NETWORKDAYS(C90+1,J90,DiasNOLaborables)) -> 10 | S90: 20 | AA90: SIRH | AB90: SISTEMA DE INFORMACIÓN DEL RECURDO HÍDRICO | AF90: 2021-09-19
A91: 80 | B91: 20219050040342 | C91: 2021-04-04 | D91: EMPRESA PRIVADA | E91: CORREO ELECTRÓNICO | F91: SOLICITUD DE INFORMACIÓN Y DOCUMENTOS | G91: BOSQUES | H91: SI | I91: SUBDIRECCIÓN DE ECOSISTEMAS E INFORMACIÓN AMBIENTAL | J91: 2021-04-14 | K91: CORREO ELECTRÓNICO | M91: =IFERROR(WORKDAY(C91,S90,DiasNOLaborables),"") -> 2021-04-30 | N91: =+IF(C91="","",IF(J91="","SIN RESPUESTA",(IF(J91<=M91,"A TIEMPO","FUERA DE TIEMPO")))) -> A TIEMPO | O91: =IF(J91="","",NETWORKDAYS(C91+1,J91,DiasNOLaborables)) -> 8 | S91: 5 | AA91: SOLICITUD DE INFORMACIÓN HIDROMETEOROLÓGICA | AF91: 2021-09-25
A92: 81 | B92: 20219050040362 | C92: 2021-04-04 | D92: ENTIDAD PÚBLICA | E92: CORREO ELECTRÓNICO | F92: SOLICITUD JUDICIAL | G92: CAMBIO CLIMÁTICO | H92: SI | I92: DIRECCIÓN GENERAL | J92: 2021-04-07 | K92: CORREO ELECTRÓNICO | M92: =IFERROR(WORKDAY(C92,S91,DiasNOLaborables),"") -> 2021-04-09 | N92: =+IF(C92="","",IF(J92="","SIN RESPUESTA",(IF(J92<=M92,"A TIEMPO","FUERA DE TIEMPO")))) -> A TIEMPO | O92: =IF(J92="","",NETWORKDAYS(C92+1,J92,DiasNOLaborables)) -> 3 | S92: 35 | AA92: SUELOS Y TIERRAS | AF92: 2021-09-26
A93: 82 | B93: 20219050040382 | C93: 2021-04-04 | D93: EMPRESA PRIVADA | E93: CORREO ELECTRÓNICO | F93: CERTIFICACIONES DE TIEMPO, CLIMA Y EVENTOS HIDROLÓGICOS | G93: CERTIFICACIONES DE TIEMPO Y CLIMA | H93: SI | I93: SUBDIRECCIÓN DE METEOROLOGÍA | J93: 2021-04-13 | K93: CORREO ELECTRÓNICO | M93: =IFERROR(WORKDAY(C93,S92,DiasNOLaborables),"") -> 2021-05-24 | N93: =+IF(C93="","",IF(J93="","SIN RESPUESTA",(IF(J93<=M93,"A TIEMPO","FUERA DE TIEMPO")))) -> A TIEMPO | O93: =IF(J93="","",NETWORKDAYS(C93+1,J93,DiasNOLaborables)) -> 7 | S93: 20 | AA93: VISITAS ACADÉMICAS | AF93: 2021-10-02
A94: 83 | B94: 20219050040392 | C94: 2021-04-04 | D94: CIUDADANO | E94: CORREO ELECTRÓNICO | F94: SOLICITUD DE INFORMACIÓN Y DOCUMENTOS | G94: ADMINISTRATIVA | H94: SI | I94: GRUPO DE ADMINISTRACIÓN Y DESARROLLO DEL TALENTO HUMANO | J94: 2021-04-05 | K94: CORREO ELECTRÓNICO | M94: =IFERROR(WORKDAY(C94,S93,DiasNOLaborables),"") -> 2021-04-30 | N94: =+IF(C94="","",IF(J94="","SIN RESPUESTA",(IF(J94<=M94,"A TIEMPO","FUERA DE TIEMPO")))) -> A TIEMPO | O94: =IF(J94="","",NETWORKDAYS(C94+1,J94,DiasNOLaborables)) -> 1 | S94: 5 | AA94: WEB Y CORREO | AF94: 2021-10-03
A95: 84 | B95: 20219050040402 | C95: 2021-04-04 | D95: ENTIDAD PÚBLICA | E95: CORREO ELECTRÓNICO | F95: SOLICITUD JUDICIAL | G95: CERTIFICACIONES DE TIEMPO Y CLIMA | H95: SI | I95: SUBDIRECCIÓN DE METEOROLOGÍA | J95: 2021-04-09 | K95: CORREO ELECTRÓNICO | M95: =IFERROR(WORKDAY(C95,S94,DiasNOLaborables),"") -> 2021-04-09 | N95: =+IF(C95="","",IF(J95="","SIN RESPUESTA",(IF(J95<=M95,"A TIEMPO","FUERA DE TIEMPO")))) -> A TIEMPO | O95: =IF(J95="","",NETWORKDAYS(C95+1,J95,DiasNOLaborables)) -> 5 | S95: 20 | AA95: ZONIFICACIÓN HIDROGRÁFICA | AF95: 2021-10-09
A96: 85 | B96: 20219050040422 | C96: 2021-04-04 | D96: CIUDADANO | E96: CORREO ELECTRÓNICO | F96: SOLICITUD DE INFORMACIÓN Y DOCUMENTOS | G96: PRONÓSTICOS Y ALERTAS | H96: SI | I96: OFICINA DEL SERVICIO DE PRONÓSTICOS Y ALERTAS | J96: 2021-04-28 | K96: CORREO ELECTRÓNICO | M96: =IFERROR(WORKDAY(C96,S95,DiasNOLaborables),"") -> 2021-04-30 | N96: =+IF(C96="","",IF(J96="","SIN RESPUESTA",(IF(J96<=M96,"A TIEMPO","FUERA DE TIEMPO")))) -> A TIEMPO | O96: =IF(J96="","",NETWORKDAYS(C96+1,J96,DiasNOLaborables)) -> 18 | S96: 20 | AF96: 2021-10-10
A97: 86 | B97: 20219050040432 | C97: 2021-04-04 | D97: EMPRESA PRIVADA | E97: CORREO ELECTRÓNICO | F97: SOLICITUD DE INFORMACIÓN Y DOCUMENTOS | G97: ADMINISTRATIVA | H97: SI | I97: GRUPO DE TESORERÍA | J97: 2021-04-05 | K97: CORREO ELECTRÓNICO | M97: =IFERROR(WORKDAY(C97,S96,DiasNOLaborables),"") -> 2021-04-30 | N97: =+IF(C97="","",IF(J97="","SIN RESPUESTA",(IF(J97<=M97,"A TIEMPO","FUERA DE TIEMPO")))) -> A TIEMPO | O97: =IF(J97="","",NETWORKDAYS(C97+1,J97,DiasNOLaborables)) -> 1 | S97: 20 | AA97: MEDIO DE RECEPCIÓN | AF97: 2021-10-16
A98: 87 | B98: 20219050040312 | C98: 2021-04-04 | D98: CIUDADANO | E98: MODULO CONTACTENOS | F98: SOLICITUD DE INFORMACIÓN Y DOCUMENTOS | G98: SIRH | H98: SI | I98: SUBDIRECCIÓN DE HIDROLOGÍA | J98: 2021-04-08 | K98: CORREO ELECTRÓNICO | M98: =IFERROR(WORKDAY(C98,S97,DiasNOLaborables),"") -> 2021-04-30 | N98: =+IF(C98="","",IF(J98="","SIN RESPUESTA",(IF(J98<=M98,"A TIEMPO","FUERA DE TIEMPO")))) -> A TIEMPO | O98: =IF(J98="","",NETWORKDAYS(C98+1,J98,DiasNOLaborables)) -> 4 | S98: 20 | AA98: ATENCIÓN PRESENCIAL | AF98: 2021-10-17
A99: 88 | B99: 20219050040502 | C99: 2021-04-05 | D99: FUNCIONARIO IDEAM | E99: MODULO CONTACTENOS | F99: SOLICITUD DE INFORMACIÓN Y DOCUMENTOS | G99: ADMINISTRATIVA | H99: SI | I99: GRUPO DE ADMINISTRACIÓN Y DESARROLLO DEL TALENTO HUMANO | J99: 2021-04-21 | K99: CORREO ELECTRÓNICO | M99: =IFERROR(WORKDAY(C99,S98,DiasNOLaborables),"") -> 2021-05-03 | N99: =+IF(C99="","",IF(J99="","SIN RESPUESTA",(IF(J99<=M99,"A TIEMPO","FUERA DE TIEMPO")))) -> A TIEMPO | O99: =IF(J99="","",NETWORKDAYS(C99+1,J99,DiasNOLaborables)) -> 12 | S99: 35 | AA99: ATENCIÓN TELEFÓNICA | AF99: 2021-10-18
A100: 89 | B100: 20219050040562 | C100: 2021-04-05 | D100: EMPRESA PRIVADA | E100: MODULO CONTACTENOS | F100: CERTIFICACIONES DE TIEMPO, CLIMA Y EVENTOS HIDROLÓGICOS | G100: CERTIFICACIONES DE TIEMPO Y CLIMA | H100: SI | I100: SUBDIRECCIÓN DE METEOROLOGÍA | J100: 2021-04-14 | K100: CORREO ELECTRÓNICO | M100: =IFERROR(WORKDAY(C100,S99,DiasNOLaborables),"") -> 2021-05-25 | N100: =+IF(C100="","",IF(J100="","SIN RESPUESTA",(IF(J100<=M100,"A TIEMPO","FUERA DE TIEMPO")))) -> A TIEMPO | O100: =IF(J100="","",NETWORKDAYS(C100+1,J100,DiasNOLaborables)) -> 7 | S100: 5 | AA100: BUZÓN DE SUGERENCIAS | AF100: 2021-10-23
A101: 90 | B101: 20219050040822 | C101: 2021-04-05 | D101: ENTIDAD PÚBLICA | E101: CORREO ELECTRÓNICO | F101: SOLICITUD JUDICIAL | G101: INFORMES AMBIENTALES | H101: SI | I101: DIRECCIÓN GENERAL | J101: 2021-04-07 | K101: CORREO ELECTRÓNICO | M101: =IFERROR(WORKDAY(C101,S100,DiasNOLaborables),"") -> 2021-04-12 | N101: =+IF(C101="","",IF(J101="","SIN RESPUESTA",(IF(J101<=M101,"A TIEMPO","FUERA DE TIEMPO")))) -> A TIEMPO | O101: =IF(J101="","",NETWORKDAYS(C101+1,J101,DiasNOLaborables)) -> 2 | S101: 20 | AA101: CHAT | AF101: 2021-10-24
A102: 91 | B102: 20219050040842 | C102: 2021-04-05 | D102: CIUDADANO | E102: CORREO ELECTRÓNICO | F102: SOLICITUD DE INFORMACIÓN Y DOCUMENTOS | G102: ACREDITACIÓN DE LABORATORIOS | H102: SI | I102: SUBDIRECCIÓN DE ESTUDIOS AMBIENTALES | J102: 2021-04-05 | K102: CORREO ELECTRÓNICO | M102: =IFERROR(WORKDAY(C102,S101,DiasNOLaborables),"") -> 2021-05-03 | N102: =+IF(C102="","",IF(J102="","SIN RESPUESTA",(IF(J102<=M102,"A TIEMPO","FUERA DE TIEMPO")))) -> A TIEMPO | O102: =IF(J102="","",NETWORKDAYS(C102+1,J102,DiasNOLaborables)) -> -2 | S102: 30 | AA102: CORREO CERTIFICADO | AF102: 2021-10-30
A103: 92 | B103: 20219050040932 | C103: 2021-04-05 | D103: CIUDADANO | E103: CORREO ELECTRÓNICO | F103: PETICIÓN | G103: CERTIFICACIONES DE TIEMPO Y CLIMA | H103: SI | I103: SUBDIRECCIÓN DE METEOROLOGÍA | J103: 2021-04-12 | K103: CORREO ELECTRÓNICO | M103: =IFERROR(WORKDAY(C103,S102,DiasNOLaborables),"") -> 2021-05-18 | N103: =+IF(C103="","",IF(J103="","SIN RESPUESTA",(IF(J103<=M103,"A TIEMPO","FUERA DE TIEMPO")))) -> A TIEMPO | O103: =IF(J103="","",NETWORKDAYS(C103+1,J103,DiasNOLaborables)) -> 5 | S103: 20 | AA103: CORREO ELECTRÓNICO | AF103: 2021-10-31
A104: 93 | B104: 20219050040972 | C104: 2021-04-05 | D104: CIUDADANO | E104: CORREO ELECTRÓNICO | F104: SOLICITUD DE INFORMACIÓN Y DOCUMENTOS | G104: SIA | H104: SI | I104: SUBDIRECCIÓN DE ECOSISTEMAS E INFORMACIÓN AMBIENTAL | J104: 2021-04-14 | K104: CORREO ELECTRÓNICO | M104: =IFERROR(WORKDAY(C104,S103,DiasNOLaborables),"") -> 2021-05-03 | N104: =+IF(C104="","",IF(J104="","SIN RESPUESTA",(IF(J104<=M104,"A TIEMPO","FUERA DE TIEMPO")))) -> A TIEMPO | O104: =IF(J104="","",NETWORKDAYS(C104+1,J104,DiasNOLaborables)) -> 7 | S104: 30 | AA104: FAX | AF104: 2021-11-01
A105: 94 | B105: 20219050041052 | C105: 2021-04-05 | D105: CIUDADANO | E105: CORREO ELECTRÓNICO | F105: PETICIÓN | G105: ADMINISTRATIVA | H105: SI | I105: GRUPO DE ADMINISTRACIÓN Y DESARROLLO DEL TALENTO HUMANO | J105: 2021-04-26 | K105: CORREO ELECTRÓNICO | M105: =IFERROR(WORKDAY(C105,S104,DiasNOLaborables),"") -> 2021-05-18 | N105: =+IF(C105="","",IF(J105="","SIN RESPUESTA",(IF(J105<=M105,"A TIEMPO","FUERA DE TIEMPO")))) -> A TIEMPO | O105: =IF(J105="","",NETWORKDAYS(C105+1,J105,DiasNOLaborables)) -> 15 | S105: 35 | AA105: INTERNO | AF105: 2021-11-06
A106: 95 | B106: 20219050041082 | C106: 2021-04-05 | D106: CIUDADANO | E106: CORREO ELECTRÓNICO | F106: CERTIFICACIONES DE TIEMPO, CLIMA Y EVENTOS HIDROLÓGICOS | G106: CERTIFICACIONES DE TIEMPO Y CLIMA | H106: SI | I106: SUBDIRECCIÓN DE METEOROLOGÍA | J106: 2021-04-16 | K106: CORREO ELECTRÓNICO | M106: =IFERROR(WORKDAY(C106,S105,DiasNOLaborables),"") -> 2021-05-25 | N106: =+IF(C106="","",IF(J106="","SIN RESPUESTA",(IF(J106<=M106,"A TIEMPO","FUERA DE TIEMPO")))) -> A TIEMPO | O106: =IF(J106="","",NETWORKDAYS(C106+1,J106,DiasNOLaborables)) -> 9 | S106: 35 | AA106: MODULO CONTACTENOS | AF106: 2021-11-07
A107: 96 | B107: 20219050041122 | C107: 2021-04-05 | D107: CIUDADANO | E107: CORREO ELECTRÓNICO | F107: CERTIFICACIONES DE TIEMPO, CLIMA Y EVENTOS HIDROLÓGICOS | G107: CERTIFICACIONES DE TIEMPO Y CLIMA | H107: SI | I107: SUBDIRECCIÓN DE METEOROLOGÍA | J107: 2021-04-16 | K107: CORREO ELECTRÓNICO | M107: =IFERROR(WORKDAY(C107,S106,DiasNOLaborables),"") -> 2021-05-25 | N107: =+IF(C107="","",IF(J107="","SIN RESPUESTA",(IF(J107<=M107,"A TIEMPO","FUERA DE TIEMPO")))) -> A TIEMPO | O107: =IF(J107="","",NETWORKDAYS([5]Hoja1!C105+1,[5]Hoja1!P105,DiasNOLaborables)) -> 8 | S107: 20 | AA107: WEB (MÓDULO DE SOLICITUD DE INFORMACIÓN HIDROMETEOROLÓGICA) | AF107: 2021-11-13
A108: 97 | B108: 20219050041132 | C108: 2021-04-05 | D108: CIUDADANO | E108: CORREO ELECTRÓNICO | F108: SOLICITUD DE INFORMACIÓN Y DOCUMENTOS | G108: ACREDITACIÓN DE LABORATORIOS | H108: SI | I108: SUBDIRECCIÓN DE ESTUDIOS AMBIENTALES | J108: 2021-04-12 | K108: CORREO ELECTRÓNICO | M108: =IFERROR(WORKDAY(C108,S107,DiasNOLaborables),"") -> 2021-05-03 | N108: =+IF(C108="","",IF(J108="","SIN RESPUESTA",(IF(J108<=M108,"A TIEMPO","FUERA DE TIEMPO")))) -> A TIEMPO | O108: =IF(J108="","",NETWORKDAYS(C108+1,J108,DiasNOLaborables)) -> 5 | S108: 20 | AF108: 2021-11-14
A109: 98 | B109: 20219050041182 | C109: 2021-04-05 | D109: CIUDADANO | E109: CORREO ELECTRÓNICO | F109: SOLICITUD DE INFORMACIÓN Y DOCUMENTOS | G109: REGISTROS AMBIENTALES | H109: SI | I109: SUBDIRECCIÓN DE ESTUDIOS AMBIENTALES | J109: 2021-04-05 | K109: CORREO ELECTRÓNICO | M109: =IFERROR(WORKDAY(C109,S108,DiasNOLaborables),"") -> 2021-05-03 | N109: =+IF(C109="","",IF(J109="","SIN RESPUESTA",(IF(J109<=M109,"A TIEMPO","FUERA DE TIEMPO")))) -> A TIEMPO | O109: =IF(J109="","",NETWORKDAYS(C109+1,J109,DiasNOLaborables)) -> -2 | S109: 20 | AA109: ¿REQUERIMIENTO FUE ESCALADO? | AF109: 2021-11-15
A110: 99 | B110: 20219050041212 | C110: 2021-04-05 | D110: CIUDADANO | E110: CORREO ELECTRÓNICO | F110: SOLICITUD DE INFORMACIÓN Y DOCUMENTOS | G110: ADMINISTRATIVA | H110: SI | I110: GRUPO DE TESORERÍA | J110: 2021-04-06 | K110: CORREO ELECTRÓNICO | M110: =IFERROR(WORKDAY(C110,S109,DiasNOLaborables),"") -> 2021-05-03 | N110: =+IF(C110="","",IF(J110="","SIN RESPUESTA",(IF(J110<=M110,"A TIEMPO","FUERA DE TIEMPO")))) -> A TIEMPO | O110: =IF(J110="","",NETWORKDAYS(C110+1,J110,DiasNOLaborables)) -> 1 | S110: 20 | AA110: SI | AF110: 2021-11-20
A111: 100 | B111: 20219050041242 | C111: 2021-04-05 | D111: CIUDADANO | E111: CORREO ELECTRÓNICO | F111: SOLICITUD DE INFORMACIÓN Y DOCUMENTOS | G111: BOSQUES | H111: SI | I111: SUBDIRECCIÓN DE ECOSISTEMAS E INFORMACIÓN AMBIENTAL | J111: 2021-04-19 | K111: CORREO ELECTRÓNICO | M111: =IFERROR(WORKDAY(C111,S110,DiasNOLaborables),"") -> 2021-05-03 | N111: =+IF(C111="","",IF(J111="","SIN RESPUESTA",(IF(J111<=M111,"A TIEMPO","FUERA DE TIEMPO")))) -> A TIEMPO | O111: =IF(J111="","",NETWORKDAYS(C111+1,J111,DiasNOLaborables)) -> 10 | S111: 20 | AA111: NO | AF111: 2021-11-21
A112: 101 | B112: 20219050041252 | C112: 2021-04-05 | D112: CIUDADANO | E112: CORREO ELECTRÓNICO | F112: SOLICITUD DE INFORMACIÓN Y DOCUMENTOS | G112: BOSQUES | H112: SI | I112: SUBDIRECCIÓN DE ECOSISTEMAS E INFORMACIÓN AMBIENTAL | J112: 2021-04-14 | K112: CORREO ELECTRÓNICO | M112: =IFERROR(WORKDAY(C112,S111,DiasNOLaborables),"") -> 2021-05-03 | N112: =+IF(C112="","",IF(J112="","SIN RESPUESTA",(IF(J112<=M112,"A TIEMPO","FUERA DE TIEMPO")))) -> A TIEMPO | O112: =IF(J112="","",NETWORKDAYS(C112+1,J112,DiasNOLaborables)) -> 7 | S112: 20 | AF112: 2021-11-27
A113: 102 | B113: 20219050041262 | C113: 2021-04-05 | D113: CIUDADANO | E113: CORREO ELECTRÓNICO | F113: SOLICITUD DE INFORMACIÓN Y DOCUMENTOS | G113: REGISTROS AMBIENTALES | H113: SI | I113: SUBDIRECCIÓN DE ESTUDIOS AMBIENTALES | J113: 2021-04-05 | K113: CORREO ELECTRÓNICO | M113: =IFERROR(WORKDAY(C113,S112,DiasNOLaborables),"") -> 2021-05-03 | N113: =+IF(C113="","",IF(J113="","SIN RESPUESTA",(IF(J113<=M113,"A TIEMPO","FUERA DE TIEMPO")))) -> A TIEMPO | O113: =IF(J113="","",NETWORKDAYS(C113+1,J113,DiasNOLaborables)) -> -2 | S113: 20 | AA113: CANAL POR EL CUAL FUE RESUELTO EL REQUERIMIENTO | AF113: 2021-11-28
A114: 103 | B114: 20219050041272 | C114: 2021-04-05 | D114: CIUDADANO | E114: CORREO ELECTRÓNICO | F114: SOLICITUD DE INFORMACIÓN Y DOCUMENTOS | G114: REGISTROS AMBIENTALES | H114: SI | I114: SUBDIRECCIÓN DE ESTUDIOS AMBIENTALES | J114: 2021-04-05 | K114: CORREO ELECTRÓNICO | M114: =IFERROR(WORKDAY(C114,S113,DiasNOLaborables),"") -> 2021-05-03 | N114: =+IF(C114="","",IF(J114="","SIN RESPUESTA",(IF(J114<=M114,"A TIEMPO","FUERA DE TIEMPO")))) -> A TIEMPO | O114: =IF(J114="","",NETWORKDAYS(C114+1,J114,DiasNOLaborables)) -> -2 | S114: 35 | AA114: CORREO ELECTRÓNICO | AF114: 2021-12-04
A115: 104 | B115: 20219050040612 | C115: 2021-04-05 | D115: EMPRESA PRIVADA | E115: MODULO CONTACTENOS | F115: CERTIFICACIONES DE TIEMPO, CLIMA Y EVENTOS HIDROLÓGICOS | G115: CERTIFICACIONES DE TIEMPO Y CLIMA | H115: SI | I115: SUBDIRECCIÓN DE METEOROLOGÍA | J115: 2021-04-14 | K115: CORREO ELECTRÓNICO | M115: =IFERROR(WORKDAY(C115,S114,DiasNOLaborables),"") -> 2021-05-25 | N115: =+IF(C115="","",IF(J115="","SIN RESPUESTA",(IF(J115<=M115,"A TIEMPO","FUERA DE TIEMPO")))) -> A TIEMPO | O115: =IF(J115="","",NETWORKDAYS(C115+1,J115,DiasNOLaborables)) -> 7 | S115: 20 | AA115: CORREO CERTIFICADO | AF115: 2021-12-05
A116: 105 | B116: 20219050040752 | C116: 2021-04-05 | D116: CIUDADANO | E116: MODULO CONTACTENOS | F116: SOLICITUD DE INFORMACIÓN Y DOCUMENTOS | G116: SUELOS Y TIERRAS | H116: SI | I116: SUBDIRECCIÓN DE ECOSISTEMAS E INFORMACIÓN AMBIENTAL | J116: 2021-04-15 | K116: CORREO ELECTRÓNICO | M116: =IFERROR(WORKDAY(C116,S115,DiasNOLaborables),"") -> 2021-05-03 | N116: =+IF(C116="","",IF(J116="","SIN RESPUESTA",(IF(J116<=M116,"A TIEMPO","FUERA DE TIEMPO")))) -> A TIEMPO | O116: =IF(J116="","",NETWORKDAYS(C116+1,J116,DiasNOLaborables)) -> 8 | S116: 20 | AF116: 2021-12-08
A117: 106 | B117: 20219050040792 | C117: 2021-04-05 | D117: FUNCIONARIO IDEAM | E117: MODULO CONTACTENOS | F117: SOLICITUD DE INFORMACIÓN Y DOCUMENTOS | G117: ADMINISTRATIVA | H117: SI | I117: GRUPO DE ADMINISTRACIÓN Y DESARROLLO DEL TALENTO HUMANO | J117: 2021-04-06 | K117: CORREO ELECTRÓNICO | M117: =IFERROR(WORKDAY(C117,S116,DiasNOLaborables),"") -> 2021-05-03 | N117: =+IF(C117="","",IF(J117="","SIN RESPUESTA",(IF(J117<=M117,"A TIEMPO","FUERA DE TIEMPO")))) -> A TIEMPO | O117: =IF(J117="","",NETWORKDAYS(C117+1,J117,DiasNOLaborables)) -> 1 | S117: 20 | AF117: 2021-12-11
A118: 107 | B118: 20219050040812 | C118: 2021-04-05 | D118: CIUDADANO | E118: MODULO CONTACTENOS | F118: SOLICITUD DE INFORMACIÓN Y DOCUMENTOS | G118: ADMINISTRATIVA | H118: SI | I118: GRUPO DE TESORERÍA | J118: 2021-04-06 | K118: CORREO ELECTRÓNICO | M118: =IFERROR(WORKDAY(C118,S117,DiasNOLaborables),"") -> 2021-05-03 | N118: =+IF(C118="","",IF(J118="","SIN RESPUESTA",(IF(J118<=M118,"A TIEMPO","FUERA DE TIEMPO")))) -> A TIEMPO | O118: =IF(J118="","",NETWORKDAYS(C118+1,J118,DiasNOLaborables)) -> 1 | S118: 20 | AF118: 2021-12-12
A119: 108 | B119: 20219050041192 | C119: 2021-04-05 | D119: FUNCIONARIO IDEAM | E119: MODULO CONTACTENOS | F119: SOLICITUD DE INFORMACIÓN Y DOCUMENTOS | G119: ADMINISTRATIVA | H119: SI | I119: GRUPO DE ADMINISTRACIÓN Y DESARROLLO DEL TALENTO HUMANO | J119: 2021-04-08 | K119: CORREO ELECTRÓNICO | M119: =IFERROR(WORKDAY(C119,S118,DiasNOLaborables),"") -> 2021-05-03 | N119: =+IF(C119="","",IF(J119="","SIN RESPUESTA",(IF(J119<=M119,"A TIEMPO","FUERA DE TIEMPO")))) -> A TIEMPO | O119: =IF(J119="","",NETWORKDAYS(C119+1,J119,DiasNOLaborables)) -> 3 | S119: 20 | AF119: 2021-12-18
A120: 109 | B120: 20219050041222 | C120: 2021-04-05 | D120: CIUDADANO | E120: MODULO CONTACTENOS | F120: SOLICITUD DE INFORMACIÓN Y DOCUMENTOS | G120: ZONIFICACIÓN HIDROGRÁFICA | H120: SI | I120: SUBDIRECCIÓN DE ECOSISTEMAS E INFORMACIÓN AMBIENTAL | J120: 2021-04-09 | K120: CORREO ELECTRÓNICO | M120: =IFERROR(WORKDAY(C120,S119,DiasNOLaborables),"") -> 2021-05-03 | N120: =+IF(C120="","",IF(J120="","SIN RESPUESTA",(IF(J120<=M120,"A TIEMPO","FUERA DE TIEMPO")))) -> A TIEMPO | O120: =IF(J120="","",NETWORKDAYS(C120+1,J120,DiasNOLaborables)) -> 4 | S120: 20 | AF120: 2021-12-19
A121: 110 | B121: 20219050041342 | C121: 2021-04-05 | D121: FUNCIONARIO IDEAM | E121: MODULO CONTACTENOS | F121: SOLICITUD DE INFORMACIÓN Y DOCUMENTOS | G121: ADMINISTRATIVA | H121: SI | I121: GRUPO DE ADMINISTRACIÓN Y DESARROLLO DEL TALENTO HUMANO | J121: 2021-04-09 | K121: CORREO ELECTRÓNICO | M121: =IFERROR(WORKDAY(C121,S120,DiasNOLaborables),"") -> 2021-05-03 | N121: =+IF(C121="","",IF(J121="","SIN RESPUESTA",(IF(J121<=M121,"A TIEMPO","FUERA DE TIEMPO")))) -> A TIEMPO | O121: =IF(J121="","",NETWORKDAYS(C121+1,J121,DiasNOLaborables)) -> 4 | S121: 20 | AF121: 2021-12-25
A122: 111 | B122: 20219050041522 | C122: 2021-04-05 | D122: CIUDADANO | E122: MODULO CONTACTENOS | F122: SOLICITUD DE INFORMACIÓN Y DOCUMENTOS | G122: SIA | H122: SI | I122: SUBDIRECCIÓN DE ECOSISTEMAS E INFORMACIÓN AMBIENTAL | J122: 2021-04-16 | K122: CORREO ELECTRÓNICO | M122: =IFERROR(WORKDAY(C122,S121,DiasNOLaborables),"") -> 2021-05-03 | N122: =+IF(C122="","",IF(J122="","SIN RESPUESTA",(IF(J122<=M122,"A TIEMPO","FUERA DE TIEMPO")))) -> A TIEMPO | O122: =IF(J122="","",NETWORKDAYS(C122+1,J122,DiasNOLaborables)) -> 9 | S122: 20 | AF122: 2021-12-26
A123: 112 | B123: 20219050040632 | C123: 2021-04-05 | D123: CIUDADANO | E123: MODULO CONTACTENOS | F123: SOLICITUD DE INFORMACIÓN Y DOCUMENTOS | G123: SOLICITUD DE INFORMACIÓN HIDROMETEOROLÓGICA | H123: NO | I123: GRUPO DE SERVICIO AL CIUDADANO | J123: 2021-04-27 | K123: CORREO ELECTRÓNICO | M123: =IFERROR(WORKDAY(C123,S122,DiasNOLaborables),"") -> 2021-05-03 | N123: =+IF(C123="","",IF(J123="","SIN RESPUESTA",(IF(J123<=M123,"A TIEMPO","FUERA DE TIEMPO")))) -> A TIEMPO | O123: =IF(J123="","",NETWORKDAYS(C123+1,J123,DiasNOLaborables)) -> 16 | S123: 20
A124: 113 | B124: 20219050040672 | C124: 2021-04-05 | D124: CIUDADANO | E124: MODULO CONTACTENOS | F124: SOLICITUD DE INFORMACIÓN Y DOCUMENTOS | G124: SOLICITUD DE INFORMACIÓN HIDROMETEOROLÓGICA | H124: NO | I124: GRUPO DE SERVICIO AL CIUDADANO | J124: 2021-04-27 | K124: CORREO ELECTRÓNICO | M124: =IFERROR(WORKDAY(C124,S123,DiasNOLaborables),"") -> 2021-05-03 | N124: =+IF(C124="","",IF(J124="","SIN RESPUESTA",(IF(J124<=M124,"A TIEMPO","FUERA DE TIEMPO")))) -> A TIEMPO | O124: =IF(J124="","",NETWORKDAYS(C124+1,J124,DiasNOLaborables)) -> 16 | S124: 20
A125: 114 | B125: 20219050040692 | C125: 2021-04-05 | D125: CIUDADANO | E125: MODULO CONTACTENOS | F125: SOLICITUD DE INFORMACIÓN Y DOCUMENTOS | G125: SOLICITUD DE INFORMACIÓN HIDROMETEOROLÓGICA | H125: NO | I125: GRUPO DE SERVICIO AL CIUDADANO | J125: 2021-04-27 | K125: CORREO ELECTRÓNICO | M125: =IFERROR(WORKDAY(C125,S124,DiasNOLaborables),"") -> 2021-05-03 | N125: =+IF(C125="","",IF(J125="","SIN RESPUESTA",(IF(J125<=M125,"A TIEMPO","FUERA DE TIEMPO")))) -> A TIEMPO | O125: =IF(J125="","",NETWORKDAYS(C125+1,J125,DiasNOLaborables)) -> 16 | S125: 20
A126: 115 | B126: 20219050040702 | C126: 2021-04-05 | D126: CIUDADANO | E126: MODULO CONTACTENOS | F126: SOLICITUD DE INFORMACIÓN Y DOCUMENTOS | G126: SOLICITUD DE INFORMACIÓN HIDROMETEOROLÓGICA | H126: SI | I126: SUBDIRECCIÓN DE METEOROLOGÍA | J126: 2021-04-27 | K126: CORREO ELECTRÓNICO | M126: =IFERROR(WORKDAY(C126,S125,DiasNOLaborables),"") -> 2021-05-03 | N126: =+IF(C126="","",IF(J126="","SIN RESPUESTA",(IF(J126<=M126,"A TIEMPO","FUERA DE TIEMPO")))) -> A TIEMPO | O126: =IF(J126="","",NETWORKDAYS(C126+1,J126,DiasNOLaborables)) -> 16 | S126: 20
A127: 116 | B127: 20219050040802 | C127: 2021-04-05 | D127: EMPRESA PRIVADA | E127: MODULO CONTACTENOS | F127: SOLICITUD DE INFORMACIÓN Y DOCUMENTOS | G127: SOLICITUD DE INFORMACIÓN HIDROMETEOROLÓGICA | H127: NO | I127: GRUPO DE SERVICIO AL CIUDADANO | J127: 2021-04-27 | K127: CORREO ELECTRÓNICO | M127: =IFERROR(WORKDAY(C127,S126,DiasNOLaborables),"") -> 2021-05-03 | N127: =+IF(C127="","",IF(J127="","SIN RESPUESTA",(IF(J127<=M127,"A TIEMPO","FUERA DE TIEMPO")))) -> A TIEMPO | O127: =IF(J127="","",NETWORKDAYS(C127+1,J127,DiasNOLaborables)) -> 16 | S127: 20
A128: 117 | B128: 20219050041002 | C128: 2021-04-05 | D128: CIUDADANO | E128: MODULO CONTACTENOS | F128: SOLICITUD DE INFORMACIÓN Y DOCUMENTOS | G128: SOLICITUD DE INFORMACIÓN HIDROMETEOROLÓGICA | H128: NO | I128: GRUPO DE SERVICIO AL CIUDADANO | J128: 2021-04-27 | K128: CORREO ELECTRÓNICO | M128: =IFERROR(WORKDAY(C128,S127,DiasNOLaborables),"") -> 2021-05-03 | N128: =+IF(C128="","",IF(J128="","SIN RESPUESTA",(IF(J128<=M128,"A TIEMPO","FUERA DE TIEMPO")))) -> A TIEMPO | O128: =IF(J128="","",NETWORKDAYS(C128+1,J128,DiasNOLaborables)) -> 16 | S128: 20
A129: 118 | B129: 20219050041042 | C129: 2021-04-05 | D129: CIUDADANO | E129: MODULO CONTACTENOS | F129: SOLICITUD DE INFORMACIÓN Y DOCUMENTOS | G129: SOLICITUD DE INFORMACIÓN HIDROMETEOROLÓGICA | H129: NO | I129: GRUPO DE SERVICIO AL CIUDADANO | J129: 2021-04-28 | K129: CORREO ELECTRÓNICO | M129: =IFERROR(WORKDAY(C129,S128,DiasNOLaborables),"") -> 2021-05-03 | N129: =+IF(C129="","",IF(J129="","SIN RESPUESTA",(IF(J129<=M129,"A TIEMPO","FUERA DE TIEMPO")))) -> A TIEMPO | O129: =IF(J129="","",NETWORKDAYS(C129+1,J129,DiasNOLaborables)) -> 17 | S129: 20
A130: 119 | B130: 20219050041152 | C130: 2021-04-05 | D130: CIUDADANO | E130: MODULO CONTACTENOS | F130: SOLICITUD DE INFORMACIÓN Y DOCUMENTOS | G130: SOLICITUD DE INFORMACIÓN HIDROMETEOROLÓGICA | H130: NO | I130: GRUPO DE SERVICIO AL CIUDADANO | J130: 2021-04-28 | K130: CORREO ELECTRÓNICO | M130: =IFERROR(WORKDAY(C130,S129,DiasNOLaborables),"") -> 2021-05-03 | N130: =+IF(C130="","",IF(J130="","SIN RESPUESTA",(IF(J130<=M130,"A TIEMPO","FUERA DE TIEMPO")))) -> A TIEMPO | O130: =IF(J130="","",NETWORKDAYS(C130+1,J130,DiasNOLaborables)) -> 17 | S130: 20
A131: 120 | B131: 20219050041172 | C131: 2021-04-05 | D131: CIUDADANO | E131: MODULO CONTACTENOS | F131: SOLICITUD DE INFORMACIÓN Y DOCUMENTOS | G131: SOLICITUD DE INFORMACIÓN HIDROMETEOROLÓGICA | H131: NO | I131: GRUPO DE SERVICIO AL CIUDADANO | J131: 2021-04-28 | K131: CORREO ELECTRÓNICO | M131: =IFERROR(WORKDAY(C131,S130,DiasNOLaborables),"") -> 2021-05-03 | N131: =+IF(C131="","",IF(J131="","SIN RESPUESTA",(IF(J131<=M131,"A TIEMPO","FUERA DE TIEMPO")))) -> A TIEMPO | O131: =IF(J131="","",NETWORKDAYS(C131+1,J131,DiasNOLaborables)) -> 17 | S131: 20
A132: 121 | B132: 20219050041292 | C132: 2021-04-05 | D132: CIUDADANO | E132: MODULO CONTACTENOS | F132: SOLICITUD DE INFORMACIÓN Y DOCUMENTOS | G132: SOLICITUD DE INFORMACIÓN HIDROMETEOROLÓGICA | H132: NO | I132: GRUPO DE SERVICIO AL CIUDADANO | J132: 2021-04-28 | K132: CORREO ELECTRÓNICO | M132: =IFERROR(WORKDAY(C132,S131,DiasNOLaborables),"") -> 2021-05-03 | N132: =+IF(C132="","",IF(J132="","SIN RESPUESTA",(IF(J132<=M132,"A TIEMPO","FUERA DE TIEMPO")))) -> A TIEMPO | O132: =IF(J132="","",NETWORKDAYS(C132+1,J132,DiasNOLaborables)) -> 17 | S132: 20
A133: 122 | B133: 20219050041402 | C133: 2021-04-05 | D133: CIUDADANO | E133: MODULO CONTACTENOS | F133: SOLICITUD DE INFORMACIÓN Y DOCUMENTOS | G133: SOLICITUD DE INFORMACIÓN HIDROMETEOROLÓGICA | H133: NO | I133: GRUPO DE SERVICIO AL CIUDADANO | J133: 2021-04-28 | K133: CORREO ELECTRÓNICO | M133: =IFERROR(WORKDAY(C133,S132,DiasNOLaborables),"") -> 2021-05-03 | N133: =+IF(C133="","",IF(J133="","SIN RESPUESTA",(IF(J133<=M133,"A TIEMPO","FUERA DE TIEMPO")))) -> A TIEMPO | O133: =IF(J133="","",NETWORKDAYS(C133+1,J133,DiasNOLaborables)) -> 17 | S133: 20
A134: 123 | B134: 20219050041482 | C134: 2021-04-05 | D134: CIUDADANO | E134: MODULO CONTACTENOS | F134: SOLICITUD DE INFORMACIÓN Y DOCUMENTOS | G134: SOLICITUD DE INFORMACIÓN HIDROMETEOROLÓGICA | H134: NO | I134: GRUPO DE SERVICIO AL CIUDADANO | J134: 2021-04-28 | K134: CORREO ELECTRÓNICO | M134: =IFERROR(WORKDAY(C134,S133,DiasNOLaborables),"") -> 2021-05-03 | N134: =+IF(C134="","",IF(J134="","SIN RESPUESTA",(IF(J134<=M134,"A TIEMPO","FUERA DE TIEMPO")))) -> A TIEMPO | O134: =IF(J134="","",NETWORKDAYS(C134+1,J134,DiasNOLaborables)) -> 17 | S134: 20
A135: 124 | B135: 20219050041492 | C135: 2021-04-05 | D135: CIUDADANO | E135: MODULO CONTACTENOS | F135: SOLICITUD DE INFORMACIÓN Y DOCUMENTOS | G135: SOLICITUD DE INFORMACIÓN HIDROMETEOROLÓGICA | H135: NO | I135: GRUPO DE SERVICIO AL CIUDADANO | J135: 2021-04-28 | K135: CORREO ELECTRÓNICO | M135: =IFERROR(WORKDAY(C135,S134,DiasNOLaborables),"") -> 2021-05-03 | N135: =+IF(C135="","",IF(J135="","SIN RESPUESTA",(IF(J135<=M135,"A TIEMPO","FUERA DE TIEMPO")))) -> A TIEMPO | O135: =IF(J135="","",NETWORKDAYS(C135+1,J135,DiasNOLaborables)) -> 17 | S135: 20
A136: 125 | B136: 20219050041502 | C136: 2021-04-05 | D136: CIUDADANO | E136: MODULO CONTACTENOS | F136: SOLICITUD DE INFORMACIÓN Y DOCUMENTOS | G136: SOLICITUD DE INFORMACIÓN HIDROMETEOROLÓGICA | H136: NO | I136: GRUPO DE SERVICIO AL CIUDADANO | J136: 2021-04-28 | K136: CORREO ELECTRÓNICO | M136: =IFERROR(WORKDAY(C136,S135,DiasNOLaborables),"") -> 2021-05-03 | N136: =+IF(C136="","",IF(J136="","SIN RESPUESTA",(IF(J136<=M136,"A TIEMPO","FUERA DE TIEMPO")))) -> A TIEMPO | O136: =IF(J136="","",NETWORKDAYS(C136+1,J136,DiasNOLaborables)) -> 17 | S136: 20
A137: 126 | B137: 20219050041512 | C137: 2021-04-05 | D137: CIUDADANO | E137: MODULO CONTACTENOS | F137: SOLICITUD DE INFORMACIÓN Y DOCUMENTOS | G137: SOLICITUD DE INFORMACIÓN HIDROMETEOROLÓGICA | H137: SI | I137: SUBDIRECCIÓN DE ECOSISTEMAS E INFORMACIÓN AMBIENTAL | J137: 2021-04-28 | K137: CORREO ELECTRÓNICO | M137: =IFERROR(WORKDAY(C137,S136,DiasNOLaborables),"") -> 2021-05-03 | N137: =+IF(C137="","",IF(J137="","SIN RESPUESTA",(IF(J137<=M137,"A TIEMPO","FUERA DE TIEMPO")))) -> A TIEMPO | O137: =IF(J137="","",NETWORKDAYS(C137+1,J137,DiasNOLaborables)) -> 17 | S137: 20
A138: 127 | B138: 20219050040492 | C138: 2021-04-05 | D138: CIUDADANO | E138: MODULO CONTACTENOS | F138: SOLICITUD DE INFORMACIÓN Y DOCUMENTOS | G138: SOLICITUD DE INFORMACIÓN HIDROMETEOROLÓGICA | H138: NO | I138: GRUPO DE SERVICIO AL CIUDADANO | J138: 2021-05-03 | K138: CORREO ELECTRÓNICO | M138: =IFERROR(WORKDAY(C138,S137,DiasNOLaborables),"") -> 2021-05-03 | N138: =+IF(C138="","",IF(J138="","SIN RESPUESTA",(IF(J138<=M138,"A TIEMPO","FUERA DE TIEMPO")))) -> A TIEMPO | O138: =IF(J138="","",NETWORKDAYS(C138+1,J138,DiasNOLaborables)) -> 20 | S138: 20
A139: 128 | B139: 20219050040532 | C139: 2021-04-05 | D139: CIUDADANO | E139: MODULO CONTACTENOS | F139: SOLICITUD DE INFORMACIÓN Y DOCUMENTOS | G139: SOLICITUD DE INFORMACIÓN HIDROMETEOROLÓGICA | H139: NO | I139: GRUPO DE SERVICIO AL CIUDADANO | J139: 2021-05-03 | K139: CORREO ELECTRÓNICO | M139: =IFERROR(WORKDAY(C139,S138,DiasNOLaborables),"") -> 2021-05-03 | N139: =+IF(C139="","",IF(J139="","SIN RESPUESTA",(IF(J139<=M139,"A TIEMPO","FUERA DE TIEMPO")))) -> A TIEMPO | O139: =IF(J139="","",NETWORKDAYS(C139+1,J139,DiasNOLaborables)) -> 20 | S139: 20
A140: 129 | B140: 20219050040572 | C140: 2021-04-05 | D140: CIUDADANO | E140: MODULO CONTACTENOS | F140: SOLICITUD DE INFORMACIÓN Y DOCUMENTOS | G140: SOLICITUD DE INFORMACIÓN HIDROMETEOROLÓGICA | H140: NO | I140: GRUPO DE SERVICIO AL CIUDADANO | J140: 2021-05-03 | K140: CORREO ELECTRÓNICO | M140: =IFERROR(WORKDAY(C140,S139,DiasNOLaborables),"") -> 2021-05-03 | N140: =+IF(C140="","",IF(J140="","SIN RESPUESTA",(IF(J140<=M140,"A TIEMPO","FUERA DE TIEMPO")))) -> A TIEMPO | O140: =IF(J140="","",NETWORKDAYS(C140+1,J140,DiasNOLaborables)) -> 20 | S140: 20
A141: 130 | B141: 20219050040592 | C141: 2021-04-05 | D141: CIUDADANO | E141: MODULO CONTACTENOS | F141: SOLICITUD DE INFORMACIÓN Y DOCUMENTOS | G141: SOLICITUD DE INFORMACIÓN HIDROMETEOROLÓGICA | H141: NO | I141: GRUPO DE SERVICIO AL CIUDADANO | J141: 2021-05-03 | K141: CORREO ELECTRÓNICO | M141: =IFERROR(WORKDAY(C141,S140,DiasNOLaborables),"") -> 2021-05-03 | N141: =+IF(C141="","",IF(J141="","SIN RESPUESTA",(IF(J141<=M141,"A TIEMPO","FUERA DE TIEMPO")))) -> A TIEMPO | O141: =IF(J141="","",NETWORKDAYS(C141+1,J141,DiasNOLaborables)) -> 20 | S141: =IFERROR(VLOOKUP(F142,$AA$51:$AB$64,2),"") -> 20
A142: =IF(B142<>"",A141+1,"") -> 131 | B142: 20219050040602 | C142: 2021-04-05 | D142: ACADEMIA | E142: MODULO CONTACTENOS | F142: SOLICITUD DE INFORMACIÓN Y DOCUMENTOS | G142: SOLICITUD DE INFORMACIÓN HIDROMETEOROLÓGICA | H142: NO | I142: GRUPO DE SERVICIO AL CIUDADANO | J142: 2021-05-03 | K142: CORREO ELECTRÓNICO | M142: =IFERROR(WORKDAY(C142,S141,DiasNOLaborables),"") -> 2021-05-03 | N142: =+IF(C142="","",IF(J142="","SIN RESPUESTA",(IF(J142<=M142,"A TIEMPO","FUERA DE TIEMPO")))) -> A TIEMPO | O142: =IF(J142="","",NETWORKDAYS(C142+1,J142,DiasNOLaborables)) -> 20 | S142: 20
A143: 132 | B143: 20219050040652 | C143: 2021-04-05 | D143: CIUDADANO | E143: MODULO CONTACTENOS | F143: SOLICITUD DE INFORMACIÓN Y DOCUMENTOS | G143: SOLICITUD DE INFORMACIÓN HIDROMETEOROLÓGICA | H143: NO | I143: GRUPO DE SERVICIO AL CIUDADANO | J143: 2021-05-03 | K143: CORREO ELECTRÓNICO | M143: =IFERROR(WORKDAY(C143,S142,DiasNOLaborables),"") -> 2021-05-03 | N143: =+IF(C143="","",IF(J143="","SIN RESPUESTA",(IF(J143<=M143,"A TIEMPO","FUERA DE TIEMPO")))) -> A TIEMPO | O143: =IF(J143="","",NETWORKDAYS(C143+1,J143,DiasNOLaborables)) -> 20 | S143: 20
A144: 133 | B144: 20219050040922 | C144: 2021-04-05 | D144: ACADEMIA | E144: MODULO CONTACTENOS | F144: SOLICITUD DE INFORMACIÓN Y DOCUMENTOS | G144: SOLICITUD DE INFORMACIÓN HIDROMETEOROLÓGICA | H144: NO | I144: GRUPO DE SERVICIO AL CIUDADANO | J144: 2021-05-03 | K144: CORREO ELECTRÓNICO | M144: =IFERROR(WORKDAY(C144,S143,DiasNOLaborables),"") -> 2021-05-03 | N144: =+IF(C144="","",IF(J144="","SIN RESPUESTA",(IF(J144<=M144,"A TIEMPO","FUERA DE TIEMPO")))) -> A TIEMPO | O144: =IF(J144="","",NETWORKDAYS(C144+1,J144,DiasNOLaborables)) -> 20 | P144: =IF(NETWORKDAYS(M144+1,J144,DiasNOLaborables)<=0,"",NETWORKDAYS(M144+1,J144,DiasNOLaborables)) ->  | S144: 20
A145: 134 | B145: 20219050041072 | C145: 2021-04-05 | D145: ACADEMIA | E145: MODULO CONTACTENOS | F145: SOLICITUD DE INFORMACIÓN Y DOCUMENTOS | G145: SOLICITUD DE INFORMACIÓN HIDROMETEOROLÓGICA | H145: NO | I145: GRUPO DE SERVICIO AL CIUDADANO | J145: 2021-05-03 | K145: CORREO ELECTRÓNICO | M145: =IFERROR(WORKDAY(C145,S144,DiasNOLaborables),"") -> 2021-05-03 | N145: =+IF(C145="","",IF(J145="","SIN RESPUESTA",(IF(J145<=M145,"A TIEMPO","FUERA DE TIEMPO")))) -> A TIEMPO | O145: =IF(J145="","",NETWORKDAYS(C145+1,J145,DiasNOLaborables)) -> 20 | S145: 20
A146: 135 | B146: 20219050041092 | C146: 2021-04-05 | D146: ACADEMIA | E146: MODULO CONTACTENOS | F146: SOLICITUD DE INFORMACIÓN Y DOCUMENTOS | G146: SOLICITUD DE INFORMACIÓN HIDROMETEOROLÓGICA | H146: NO | I146: GRUPO DE SERVICIO AL CIUDADANO | J146: 2021-05-03 | K146: CORREO ELECTRÓNICO | M146: =IFERROR(WORKDAY(C146,S145,DiasNOLaborables),"") -> 2021-05-03 | N146: =+IF(C146="","",IF(J146="","SIN RESPUESTA",(IF(J146<=M146,"A TIEMPO","FUERA DE TIEMPO")))) -> A TIEMPO | O146: =IF(J146="","",NETWORKDAYS(C146+1,J146,DiasNOLaborables)) -> 20 | S146: 20
A147: 136 | B147: 20219050041102 | C147: 2021-04-05 | D147: CIUDADANO | E147: MODULO CONTACTENOS | F147: SOLICITUD DE INFORMACIÓN Y DOCUMENTOS | G147: SOLICITUD DE INFORMACIÓN HIDROMETEOROLÓGICA | H147: NO | I147: GRUPO DE SERVICIO AL CIUDADANO | J147: 2021-05-03 | K147: CORREO ELECTRÓNICO | M147: =IFERROR(WORKDAY(C147,S146,DiasNOLaborables),"") -> 2021-05-03 | N147: =+IF(C147="","",IF(J147="","SIN RESPUESTA",(IF(J147<=M147,"A TIEMPO","FUERA DE TIEMPO")))) -> A TIEMPO | O147: =IF(J147="","",NETWORKDAYS(C147+1,J147,DiasNOLaborables)) -> 20 | S147: 20
A148: 137 | B148: 20219050041142 | C148: 2021-04-05 | D148: ACADEMIA | E148: MODULO CONTACTENOS | F148: SOLICITUD DE INFORMACIÓN Y DOCUMENTOS | G148: SOLICITUD DE INFORMACIÓN HIDROMETEOROLÓGICA | H148: NO | I148: GRUPO DE SERVICIO AL CIUDADANO | J148: 2021-05-03 | K148: CORREO ELECTRÓNICO | M148: =IFERROR(WORKDAY(C148,S147,DiasNOLaborables),"") -> 2021-05-03 | N148: =+IF(C148="","",IF(J148="","SIN RESPUESTA",(IF(J148<=M148,"A TIEMPO","FUERA DE TIEMPO")))) -> A TIEMPO | O148: =IF(J148="","",NETWORKDAYS(C148+1,J148,DiasNOLaborables)) -> 20 | S148: 20
A149: 138 | B149: 20219050041162 | C149: 2021-04-05 | D149: ACADEMIA | E149: MODULO CONTACTENOS | F149: SOLICITUD DE INFORMACIÓN Y DOCUMENTOS | G149: SOLICITUD DE INFORMACIÓN HIDROMETEOROLÓGICA | H149: NO | I149: GRUPO DE SERVICIO AL CIUDADANO | J149: 2021-05-03 | K149: CORREO ELECTRÓNICO | M149: =IFERROR(WORKDAY(C149,S148,DiasNOLaborables),"") -> 2021-05-03 | N149: =+IF(C149="","",IF(J149="","SIN RESPUESTA",(IF(J149<=M149,"A TIEMPO","FUERA DE TIEMPO")))) -> A TIEMPO | O149: =IF(J149="","",NETWORKDAYS(C149+1,J149,DiasNOLaborables)) -> 20 | S149: 20
A150: 139 | B150: 20219050041412 | C150: 2021-04-05 | D150: ACADEMIA | E150: MODULO CONTACTENOS | F150: SOLICITUD DE INFORMACIÓN Y DOCUMENTOS | G150: SOLICITUD DE INFORMACIÓN HIDROMETEOROLÓGICA | H150: NO | I150: GRUPO DE SERVICIO AL CIUDADANO | J150: 2021-05-03 | K150: CORREO ELECTRÓNICO | M150: =IFERROR(WORKDAY(C150,S149,DiasNOLaborables),"") -> 2021-05-03 | N150: =+IF(C150="","",IF(J150="","SIN RESPUESTA",(IF(J150<=M150,"A TIEMPO","FUERA DE TIEMPO")))) -> A TIEMPO | O150: =IF(J150="","",NETWORKDAYS(C150+1,J150,DiasNOLaborables)) -> 20 | S150: 20
A151: 140 | B151: 20219050041422 | C151: 2021-04-05 | D151: ACADEMIA | E151: MODULO CONTACTENOS | F151: SOLICITUD DE INFORMACIÓN Y DOCUMENTOS | G151: SOLICITUD DE INFORMACIÓN HIDROMETEOROLÓGICA | H151: NO | I151: GRUPO DE SERVICIO AL CIUDADANO | J151: 2021-05-03 | K151: CORREO ELECTRÓNICO | M151: =IFERROR(WORKDAY(C151,S150,DiasNOLaborables),"") -> 2021-05-03 | N151: =+IF(C151="","",IF(J151="","SIN RESPUESTA",(IF(J151<=M151,"A TIEMPO","FUERA DE TIEMPO")))) -> A TIEMPO | O151: =IF(J151="","",NETWORKDAYS(C151+1,J151,DiasNOLaborables)) -> 20 | S151: 20
A152: 141 | B152: 20219050041442 | C152: 2021-04-05 | D152: CIUDADANO | E152: MODULO CONTACTENOS | F152: SOLICITUD DE INFORMACIÓN Y DOCUMENTOS | G152: SOLICITUD DE INFORMACIÓN HIDROMETEOROLÓGICA | H152: NO | I152: GRUPO DE SERVICIO AL CIUDADANO | J152: 2021-05-03 | K152: CORREO ELECTRÓNICO | M152: =IFERROR(WORKDAY(C152,S151,DiasNOLaborables),"") -> 2021-05-03 | N152: =+IF(C152="","",IF(J152="","SIN RESPUESTA",(IF(J152<=M152,"A TIEMPO","FUERA DE TIEMPO")))) -> A TIEMPO | O152: =IF(J152="","",NETWORKDAYS(C152+1,J152,DiasNOLaborables)) -> 20 | S152: 20
A153: 142 | B153: 20219050041632 | C153: 2021-04-06 | D153: CIUDADANO | E153: MODULO CONTACTENOS | F153: SOLICITUD DE INFORMACIÓN Y DOCUMENTOS | G153: SOLICITUD DE INFORMACIÓN HIDROMETEOROLÓGICA | H153: NO | I153: GRUPO DE SERVICIO AL CIUDADANO | J153: 2021-05-04 | K153: CORREO ELECTRÓNICO | M153: =IFERROR(WORKDAY(C153,S152,DiasNOLaborables),"") -> 2021-05-04 | N153: =+IF(C153="","",IF(J153="","SIN RESPUESTA",(IF(J153<=M153,"A TIEMPO","FUERA DE TIEMPO")))) -> A TIEMPO | O153: =IF(J153="","",NETWORKDAYS(C153+1,J153,DiasNOLaborables)) -> 20 | S153: 20
A154: 143 | B154: 20219050041682 | C154: 2021-04-06 | D154: CIUDADANO | E154: MODULO CONTACTENOS | F154: SOLICITUD DE INFORMACIÓN Y DOCUMENTOS | G154: SOLICITUD DE INFORMACIÓN HIDROMETEOROLÓGICA | H154: NO | I154: GRUPO DE SERVICIO AL CIUDADANO | J154: 2021-05-04 | K154: CORREO ELECTRÓNICO | M154: =IFERROR(WORKDAY(C154,S153,DiasNOLaborables),"") -> 2021-05-04 | N154: =+IF(C154="","",IF(J154="","SIN RESPUESTA",(IF(J154<=M154,"A TIEMPO","FUERA DE TIEMPO")))) -> A TIEMPO | O154: =IF(J154="","",NETWORKDAYS(C154+1,J154,DiasNOLaborables)) -> 20 | S154: 20
A155: 144 | B155: 20219050041692 | C155: 2021-04-06 | D155: ACADEMIA | E155: MODULO CONTACTENOS | F155: SOLICITUD DE INFORMACIÓN Y DOCUMENTOS | G155: SOLICITUD DE INFORMACIÓN HIDROMETEOROLÓGICA | H155: NO | I155: GRUPO DE SERVICIO AL CIUDADANO | J155: 2021-05-04 | K155: CORREO ELECTRÓNICO | M155: =IFERROR(WORKDAY(C155,S154,DiasNOLaborables),"") -> 2021-05-04 | N155: =+IF(C155="","",IF(J155="","SIN RESPUESTA",(IF(J155<=M155,"A TIEMPO","FUERA DE TIEMPO")))) -> A TIEMPO | O155: =IF(J155="","",NETWORKDAYS(C155+1,J155,DiasNOLaborables)) -> 20 | S155: 20
A156: 145 | B156: 20219050041712 | C156: 2021-04-06 | D156: CIUDADANO | E156: MODULO CONTACTENOS | F156: SOLICITUD DE INFORMACIÓN Y DOCUMENTOS | G156: SOLICITUD DE INFORMACIÓN HIDROMETEOROLÓGICA | H156: NO | I156: GRUPO DE SERVICIO AL CIUDADANO | J156: 2021-05-04 | K156: CORREO ELECTRÓNICO | M156: =IFERROR(WORKDAY(C156,S155,DiasNOLaborables),"") -> 2021-05-04 | N156: =+IF(C156="","",IF(J156="","SIN RESPUESTA",(IF(J156<=M156,"A TIEMPO","FUERA DE TIEMPO")))) -> A TIEMPO | O156: =IF(J156="","",NETWORKDAYS(C156+1,J156,DiasNOLaborables)) -> 20 | S156: 20
A157: 146 | B157: 20219050041722 | C157: 2021-04-06 | D157: CIUDADANO | E157: MODULO CONTACTENOS | F157: SOLICITUD DE INFORMACIÓN Y DOCUMENTOS | G157: SOLICITUD DE INFORMACIÓN HIDROMETEOROLÓGICA | H157: NO | I157: GRUPO DE SERVICIO AL CIUDADANO | J157: 2021-05-04 | K157: CORREO ELECTRÓNICO | M157: =IFERROR(WORKDAY(C157,S156,DiasNOLaborables),"") -> 2021-05-04 | N157: =+IF(C157="","",IF(J157="","SIN RESPUESTA",(IF(J157<=M157,"A TIEMPO","FUERA DE TIEMPO")))) -> A TIEMPO | O157: =IF(J157="","",NETWORKDAYS(C157+1,J157,DiasNOLaborables)) -> 20 | S157: 20
A158: 147 | B158: 20219050041732 | C158: 2021-04-06 | D158: CIUDADANO | E158: MODULO CONTACTENOS | F158: SOLICITUD DE INFORMACIÓN Y DOCUMENTOS | G158: SOLICITUD DE INFORMACIÓN HIDROMETEOROLÓGICA | H158: NO | I158: GRUPO DE SERVICIO AL CIUDADANO | J158: 2021-05-04 | K158: CORREO ELECTRÓNICO | M158: =IFERROR(WORKDAY(C158,S157,DiasNOLaborables),"") -> 2021-05-04 | N158: =+IF(C158="","",IF(J158="","SIN RESPUESTA",(IF(J158<=M158,"A TIEMPO","FUERA DE TIEMPO")))) -> A TIEMPO | O158: =IF(J158="","",NETWORKDAYS(C158+1,J158,DiasNOLaborables)) -> 20 | S158: 20
A159: 148 | B159: 20219050041742 | C159: 2021-04-06 | D159: CIUDADANO | E159: MODULO CONTACTENOS | F159: SOLICITUD DE INFORMACIÓN Y DOCUMENTOS | G159: SOLICITUD DE INFORMACIÓN HIDROMETEOROLÓGICA | H159: NO | I159: GRUPO DE SERVICIO AL CIUDADANO | J159: 2021-05-04 | K159: CORREO ELECTRÓNICO | M159: =IFERROR(WORKDAY(C159,S158,DiasNOLaborables),"") -> 2021-05-04 | N159: =+IF(C159="","",IF(J159="","SIN RESPUESTA",(IF(J159<=M159,"A TIEMPO","FUERA DE TIEMPO")))) -> A TIEMPO | O159: =IF(J159="","",NETWORKDAYS(C159+1,J159,DiasNOLaborables)) -> 20 | S159: 20
A160: 149 | B160: 20219050041752 | C160: 2021-04-06 | D160: CIUDADANO | E160: MODULO CONTACTENOS | F160: SOLICITUD DE INFORMACIÓN Y DOCUMENTOS | G160: SOLICITUD DE INFORMACIÓN HIDROMETEOROLÓGICA | H160: NO | I160: GRUPO DE SERVICIO AL CIUDADANO | J160: 2021-05-04 | K160: CORREO ELECTRÓNICO | M160: =IFERROR(WORKDAY(C160,S159,DiasNOLaborables),"") -> 2021-05-04 | N160: =+IF(C160="","",IF(J160="","SIN RESPUESTA",(IF(J160<=M160,"A TIEMPO","FUERA DE TIEMPO")))) -> A TIEMPO | O160: =IF(J160="","",NETWORKDAYS(C160+1,J160,DiasNOLaborables)) -> 20 | S160: 20
A161: 150 | B161: 20219050041762 | C161: 2021-04-06 | D161: ACADEMIA | E161: MODULO CONTACTENOS | F161: SOLICITUD DE INFORMACIÓN Y DOCUMENTOS | G161: SOLICITUD DE INFORMACIÓN HIDROMETEOROLÓGICA | H161: NO | I161: GRUPO DE SERVICIO AL CIUDADANO | J161: 2021-05-04 | K161: CORREO ELECTRÓNICO | M161: =IFERROR(WORKDAY(C161,S160,DiasNOLaborables),"") -> 2021-05-04 | N161: =+IF(C161="","",IF(J161="","SIN RESPUESTA",(IF(J161<=M161,"A TIEMPO","FUERA DE TIEMPO")))) -> A TIEMPO | O161: =IF(J161="","",NETWORKDAYS(C161+1,J161,DiasNOLaborables)) -> 20 | S161: 20
A162: 151 | B162: 20219050041772 | C162: 2021-04-06 | D162: CIUDADANO | E162: MODULO CONTACTENOS | F162: SOLICITUD DE INFORMACIÓN Y DOCUMENTOS | G162: SOLICITUD DE INFORMACIÓN HIDROMETEOROLÓGICA | H162: NO | I162: GRUPO DE SERVICIO AL CIUDADANO | J162: 2021-05-04 | K162: CORREO ELECTRÓNICO | M162: =IFERROR(WORKDAY(C162,S161,DiasNOLaborables),"") -> 2021-05-04 | N162: =+IF(C162="","",IF(J162="","SIN RESPUESTA",(IF(J162<=M162,"A TIEMPO","FUERA DE TIEMPO")))) -> A TIEMPO | O162: =IF(J162="","",NETWORKDAYS(C162+1,J162,DiasNOLaborables)) -> 20 | S162: 20
A163: 152 | B163: 20219050041782 | C163: 2021-04-06 | D163: ACADEMIA | E163: MODULO CONTACTENOS | F163: SOLICITUD DE INFORMACIÓN Y DOCUMENTOS | G163: SOLICITUD DE INFORMACIÓN HIDROMETEOROLÓGICA | H163: NO | I163: GRUPO DE SERVICIO AL CIUDADANO | J163: 2021-05-04 | K163: CORREO ELECTRÓNICO | M163: =IFERROR(WORKDAY(C163,S162,DiasNOLaborables),"") -> 2021-05-04 | N163: =+IF(C163="","",IF(J163="","SIN RESPUESTA",(IF(J163<=M163,"A TIEMPO","FUERA DE TIEMPO")))) -> A TIEMPO | O163: =IF(J163="","",NETWORKDAYS(C163+1,J163,DiasNOLaborables)) -> 20 | S163: 20
A164: 153 | B164: 20219050041792 | C164: 2021-04-06 | D164: CIUDADANO | E164: MODULO CONTACTENOS | F164: SOLICITUD DE INFORMACIÓN Y DOCUMENTOS | G164: SOLICITUD DE INFORMACIÓN HIDROMETEOROLÓGICA | H164: NO | I164: GRUPO DE SERVICIO AL CIUDADANO | J164: 2021-05-04 | K164: CORREO ELECTRÓNICO | M164: =IFERROR(WORKDAY(C164,S163,DiasNOLaborables),"") -> 2021-05-04 | N164: =+IF(C164="","",IF(J164="","SIN RESPUESTA",(IF(J164<=M164,"A TIEMPO","FUERA DE TIEMPO")))) -> A TIEMPO | O164: =IF(J164="","",NETWORKDAYS(C164+1,J164,DiasNOLaborables)) -> 20 | S164: 20
A165: 154 | B165: 20219050041802 | C165: 2021-04-06 | D165: CIUDADANO | E165: MODULO CONTACTENOS | F165: SOLICITUD DE INFORMACIÓN Y DOCUMENTOS | G165: SOLICITUD DE INFORMACIÓN HIDROMETEOROLÓGICA | H165: NO | I165: GRUPO DE SERVICIO AL CIUDADANO | J165: 2021-05-04 | K165: CORREO ELECTRÓNICO | M165: =IFERROR(WORKDAY(C165,S164,DiasNOLaborables),"") -> 2021-05-04 | N165: =+IF(C165="","",IF(J165="","SIN RESPUESTA",(IF(J165<=M165,"A TIEMPO","FUERA DE TIEMPO")))) -> A TIEMPO | O165: =IF(J165="","",NETWORKDAYS(C165+1,J165,DiasNOLaborables)) -> 20 | S165: 20
A166: 155 | B166: 20219050041532 | C166: 2021-04-06 | D166: CIUDADANO | E166: MODULO CONTACTENOS | F166: SOLICITUD DE INFORMACIÓN Y DOCUMENTOS | G166: SOLICITUD DE INFORMACIÓN HIDROMETEOROLÓGICA | H166: NO | I166: GRUPO DE SERVICIO AL CIUDADANO | J166: 2021-04-28 | K166: CORREO ELECTRÓNICO | M166: =IFERROR(WORKDAY(C166,S165,DiasNOLaborables),"") -> 2021-05-04 | N166: =+IF(C166="","",IF(J166="","SIN RESPUESTA",(IF(J166<=M166,"A TIEMPO","FUERA DE TIEMPO")))) -> A TIEMPO | O166: =IF(J166="","",NETWORKDAYS(C166+1,J166,DiasNOLaborables)) -> 16 | S166: 20
A167: 156 | B167: 20219050041542 | C167: 2021-04-06 | D167: CIUDADANO | E167: MODULO CONTACTENOS | F167: SOLICITUD DE INFORMACIÓN Y DOCUMENTOS | G167: SOLICITUD DE INFORMACIÓN HIDROMETEOROLÓGICA | H167: NO | I167: GRUPO DE SERVICIO AL CIUDADANO | J167: 2021-04-29 | K167: CORREO ELECTRÓNICO | M167: =IFERROR(WORKDAY(C167,S166,DiasNOLaborables),"") -> 2021-05-04 | N167: =+IF(C167="","",IF(J167="","SIN RESPUESTA",(IF(J167<=M167,"A TIEMPO","FUERA DE TIEMPO")))) -> A TIEMPO | O167: =IF(J167="","",NETWORKDAYS(C167+1,J167,DiasNOLaborables)) -> 17 | S167: 20
A168: 157 | B168: 20219050041552 | C168: 2021-04-06 | D168: CIUDADANO | E168: MODULO CONTACTENOS | F168: SOLICITUD DE INFORMACIÓN Y DOCUMENTOS | G168: SOLICITUD DE INFORMACIÓN HIDROMETEOROLÓGICA | H168: NO | I168: GRUPO DE SERVICIO AL CIUDADANO | J168: 2021-04-28 | K168: CORREO ELECTRÓNICO | M168: =IFERROR(WORKDAY(C168,S167,DiasNOLaborables),"") -> 2021-05-04 | N168: =+IF(C168="","",IF(J168="","SIN RESPUESTA",(IF(J168<=M168,"A TIEMPO","FUERA DE TIEMPO")))) -> A TIEMPO | O168: =IF(J168="","",NETWORKDAYS(C168+1,J168,DiasNOLaborables)) -> 16 | S168: 20
A169: 158 | B169: 20219050041842 | C169: 2021-04-06 | D169: CIUDADANO | E169: MODULO CONTACTENOS | F169: SOLICITUD DE INFORMACIÓN Y DOCUMENTOS | G169: SOLICITUD DE INFORMACIÓN HIDROMETEOROLÓGICA | H169: NO | I169: GRUPO DE SERVICIO AL CIUDADANO | J169: 2021-04-29 | K169: CORREO ELECTRÓNICO | M169: =IFERROR(WORKDAY(C169,S168,DiasNOLaborables),"") -> 2021-05-04 | N169: =+IF(C169="","",IF(J169="","SIN RESPUESTA",(IF(J169<=M169,"A TIEMPO","FUERA DE TIEMPO")))) -> A TIEMPO | O169: =IF(J169="","",NETWORKDAYS(C169+1,J169,DiasNOLaborables)) -> 17 | S169: 20
A170: 159 | B170: 20219050041932 | C170: 2021-04-06 | D170: CIUDADANO | E170: MODULO CONTACTENOS | F170: SOLICITUD DE INFORMACIÓN Y DOCUMENTOS | G170: SOLICITUD DE INFORMACIÓN HIDROMETEOROLÓGICA | H170: NO | I170: GRUPO DE SERVICIO AL CIUDADANO | J170: 2021-04-29 | K170: CORREO ELECTRÓNICO | M170: =IFERROR(WORKDAY(C170,S169,DiasNOLaborables),"") -> 2021-05-04 | N170: =+IF(C170="","",IF(J170="","SIN RESPUESTA",(IF(J170<=M170,"A TIEMPO","FUERA DE TIEMPO")))) -> A TIEMPO | O170: =IF(J170="","",NETWORKDAYS(C170+1,J170,DiasNOLaborables)) -> 17 | S170: 20
A171: 160 | B171: 20219050041952 | C171: 2021-04-06 | D171: CIUDADANO | E171: MODULO CONTACTENOS | F171: SOLICITUD DE INFORMACIÓN Y DOCUMENTOS | G171: SOLICITUD DE INFORMACIÓN HIDROMETEOROLÓGICA | H171: NO | I171: GRUPO DE SERVICIO AL CIUDADANO | J171: 2021-04-29 | K171: CORREO ELECTRÓNICO | M171: =IFERROR(WORKDAY(C171,S170,DiasNOLaborables),"") -> 2021-05-04 | N171: =+IF(C171="","",IF(J171="","SIN RESPUESTA",(IF(J171<=M171,"A TIEMPO","FUERA DE TIEMPO")))) -> A TIEMPO | O171: =IF(J171="","",NETWORKDAYS(C171+1,J171,DiasNOLaborables)) -> 17 | S171: 20
A172: 161 | B172: 20219050041962 | C172: 2021-04-06 | D172: CIUDADANO | E172: MODULO CONTACTENOS | F172: SOLICITUD DE INFORMACIÓN Y DOCUMENTOS | G172: SOLICITUD DE INFORMACIÓN HIDROMETEOROLÓGICA | H172: NO | I172: GRUPO DE SERVICIO AL CIUDADANO | J172: 2021-04-29 | K172: CORREO ELECTRÓNICO | M172: =IFERROR(WORKDAY(C172,S171,DiasNOLaborables),"") -> 2021-05-04 | N172: =+IF(C172="","",IF(J172="","SIN RESPUESTA",(IF(J172<=M172,"A TIEMPO","FUERA DE TIEMPO")))) -> A TIEMPO | O172: =IF(J172="","",NETWORKDAYS(C172+1,J172,DiasNOLaborables)) -> 17 | S172: 20
A173: 162 | B173: 20219050041562 | C173: 2021-04-06 | D173: CIUDADANO | E173: MODULO CONTACTENOS | F173: SOLICITUD DE INFORMACIÓN Y DOCUMENTOS | G173: SIA | H173: SI | I173: SUBDIRECCIÓN DE ECOSISTEMAS E INFORMACIÓN AMBIENTAL | J173: 2021-04-07 | K173: CORREO ELECTRÓNICO | M173: =IFERROR(WORKDAY(C173,S172,DiasNOLaborables),"") -> 2021-05-04 | N173: =+IF(C173="","",IF(J173="","SIN RESPUESTA",(IF(J173<=M173,"A TIEMPO","FUERA DE TIEMPO")))) -> A TIEMPO | O173: =IF(J173="","",NETWORKDAYS(C173+1,J173,DiasNOLaborables)) -> 1 | S173: 20
A174: 163 | B174: 20219050041582 | C174: 2021-04-06 | D174: CIUDADANO | E174: MODULO CONTACTENOS | F174: SOLICITUD DE INFORMACIÓN Y DOCUMENTOS | G174: ADMINISTRATIVA | H174: SI | I174: GRUPO DE TESORERÍA | J174: 2021-04-06 | K174: CORREO ELECTRÓNICO | M174: =IFERROR(WORKDAY(C174,S173,DiasNOLaborables),"") -> 2021-05-04 | N174: =+IF(C174="","",IF(J174="","SIN RESPUESTA",(IF(J174<=M174,"A TIEMPO","FUERA DE TIEMPO")))) -> A TIEMPO | O174: =IF(J174="","",NETWORKDAYS(C174+1,J174,DiasNOLaborables)) -> -2 | S174: 20
A175: 164 | B175: 20219050041612 | C175: 2021-04-06 | D175: CIUDADANO | E175: MODULO CONTACTENOS | F175: SOLICITUD DE INFORMACIÓN Y DOCUMENTOS | G175: ADMINISTRATIVA | H175: SI | I175: GRUPO DE ADMINISTRACIÓN Y DESARROLLO DEL TALENTO HUMANO | J175: 2021-04-23 | K175: CORREO ELECTRÓNICO | M175: =IFERROR(WORKDAY(C175,S174,DiasNOLaborables),"") -> 2021-05-04 | N175: =+IF(C175="","",IF(J175="","SIN RESPUESTA",(IF(J175<=M175,"A TIEMPO","FUERA DE TIEMPO")))) -> A TIEMPO | O175: =IF(J175="","",NETWORKDAYS(C175+1,J175,DiasNOLaborables)) -> 13 | S175: 20
A176: 165 | B176: 20219050041652 | C176: 2021-04-06 | D176: FUNCIONARIO IDEAM | E176: MODULO CONTACTENOS | F176: SOLICITUD DE INFORMACIÓN Y DOCUMENTOS | G176: ADMINISTRATIVA | H176: SI | I176: GRUPO DE ADMINISTRACIÓN Y DESARROLLO DEL TALENTO HUMANO | J176: 2021-04-20 | K176: CORREO ELECTRÓNICO | M176: =IFERROR(WORKDAY(C176,S175,DiasNOLaborables),"") -> 2021-05-04 | N176: =+IF(C176="","",IF(J176="","SIN RESPUESTA",(IF(J176<=M176,"A TIEMPO","FUERA DE TIEMPO")))) -> A TIEMPO | O176: =IF(J176="","",NETWORKDAYS(C176+1,J176,DiasNOLaborables)) -> 10 | S176: 20
A177: 166 | B177: 20219050041832 | C177: 2021-04-06 | D177: CIUDADANO | E177: MODULO CONTACTENOS | F177: SOLICITUD DE INFORMACIÓN Y DOCUMENTOS | G177: REGISTROS AMBIENTALES | H177: SI | I177: SUBDIRECCIÓN DE ESTUDIOS AMBIENTALES | J177: 2021-04-14 | K177: CORREO ELECTRÓNICO | M177: =IFERROR(WORKDAY(C177,S176,DiasNOLaborables),"") -> 2021-05-04 | N177: =+IF(C177="","",IF(J177="","SIN RESPUESTA",(IF(J177<=M177,"A TIEMPO","FUERA DE TIEMPO")))) -> A TIEMPO | O177: =IF(J177="","",NETWORKDAYS(C177+1,J177,DiasNOLaborables)) -> 6 | S177: 20
A178: 167 | B178: 20219050041892 | C178: 2021-04-06 | D178: CIUDADANO | E178: MODULO CONTACTENOS | F178: SOLICITUD DE INFORMACIÓN Y DOCUMENTOS | G178: CLIMATOLOGÍA | H178: SI | I178: SUBDIRECCIÓN DE METEOROLOGÍA | J178: 2021-04-22 | K178: CORREO ELECTRÓNICO | M178: =IFERROR(WORKDAY(C178,S177,DiasNOLaborables),"") -> 2021-05-04 | N178: =+IF(C178="","",IF(J178="","SIN RESPUESTA",(IF(J178<=M178,"A TIEMPO","FUERA DE TIEMPO")))) -> A TIEMPO | O178: =IF(J178="","",NETWORKDAYS(C178+1,J178,DiasNOLaborables)) -> 12 | S178: 30
A179: 168 | B179: 20219910018962 | C179: 2021-04-06 | D179: EMPRESA PRIVADA | E179: CORREO ELECTRÓNICO | F179: PETICIÓN | G179: ADMINISTRATIVA | H179: SI | I179: GRUPO DE SERVICIOS ADMINISTRATIVOS | J179: 2021-05-10 | K179: CORREO ELECTRÓNICO | M179: =IFERROR(WORKDAY(C179,S178,DiasNOLaborables),"") -> 2021-05-19 | N179: =+IF(C179="","",IF(J179="","SIN RESPUESTA",(IF(J179<=M179,"A TIEMPO","FUERA DE TIEMPO")))) -> A TIEMPO | O179: =IF(J179="","",NETWORKDAYS(C179+1,J179,DiasNOLaborables)) -> 24 | S179: 5
A180: 169 | B180: 20219050041852 | C180: 2021-04-06 | D180: CIUDADANO | E180: CORREO ELECTRÓNICO | F180: REMISIÓN POR COMPETENCIA | G180: BOSQUES | H180: NO | I180: GRUPO DE SERVICIO AL CIUDADANO | J180: 2021-04-12 | K180: CORREO ELECTRÓNICO | M180: =IFERROR(WORKDAY(C180,S179,DiasNOLaborables),"") -> 2021-04-13 | N180: =+IF(C180="","",IF(J180="","SIN RESPUESTA",(IF(J180<=M180,"A TIEMPO","FUERA DE TIEMPO")))) -> A TIEMPO | O180: =IF(J180="","",NETWORKDAYS(C180+1,J180,DiasNOLaborables)) -> 4 | S180: 20
A181: 170 | B181: 20219050041862 | C181: 2021-04-06 | D181: CIUDADANO | E181: CORREO ELECTRÓNICO | F181: SOLICITUD DE INFORMACIÓN Y DOCUMENTOS | G181: AGUAS SUBTERRANEAS | H181: SI | I181: SUBDIRECCIÓN DE HIDROLOGÍA | J181: 2021-04-19 | K181: CORREO ELECTRÓNICO | M181: =IFERROR(WORKDAY(C181,S180,DiasNOLaborables),"") -> 2021-05-04 | N181: =+IF(C181="","",IF(J181="","SIN RESPUESTA",(IF(J181<=M181,"A TIEMPO","FUERA DE TIEMPO")))) -> A TIEMPO | O181: =IF(J181="","",NETWORKDAYS(C181+1,J181,DiasNOLaborables)) -> 9 | S181: 20
A182: 171 | B182: 20219050041872 | C182: 2021-04-06 | D182: EMPRESA PRIVADA | E182: CORREO ELECTRÓNICO | F182: SOLICITUD DE INFORMACIÓN Y DOCUMENTOS | G182: REGISTROS AMBIENTALES | H182: SI | I182: SUBDIRECCIÓN DE ESTUDIOS AMBIENTALES | J182: 2021-04-06 | K182: CORREO ELECTRÓNICO | M182: =IFERROR(WORKDAY(C182,S181,DiasNOLaborables),"") -> 2021-05-04 | N182: =+IF(C182="","",IF(J182="","SIN RESPUESTA",(IF(J182<=M182,"A TIEMPO","FUERA DE TIEMPO")))) -> A TIEMPO | O182: =IF(J182="","",NETWORKDAYS(C182+1,J182,DiasNOLaborables)) -> -2 | S182: 35
A183: 172 | B183: 20219050041882 | C183: 2021-04-06 | D183: CIUDADANO | E183: CORREO ELECTRÓNICO | F183: CERTIFICACIONES DE TIEMPO, CLIMA Y EVENTOS HIDROLÓGICOS | G183: CERTIFICACIONES DE TIEMPO Y CLIMA | H183: SI | I183: SUBDIRECCIÓN DE METEOROLOGÍA | J183: 2021-04-16 | K183: CORREO ELECTRÓNICO | M183: =IFERROR(WORKDAY(C183,S182,DiasNOLaborables),"") -> 2021-05-26 | N183: =+IF(C183="","",IF(J183="","SIN RESPUESTA",(IF(J183<=M183,"A TIEMPO","FUERA DE TIEMPO")))) -> A TIEMPO | O183: =IF(J183="","",NETWORKDAYS(C183+1,J183,DiasNOLaborables)) -> 8 | S183: 20
A184: 173 | B184: 20219050041902 | C184: 2021-04-06 | D184: CIUDADANO | E184: CORREO ELECTRÓNICO | F184: SOLICITUD DE INFORMACIÓN Y DOCUMENTOS | G184: SOLICITUD DE INFORMACIÓN HIDROMETEOROLÓGICA | H184: SI | I184: OFICINA DE INFORMÁTICA | J184: 2021-04-16 | K184: CORREO ELECTRÓNICO | M184: =IFERROR(WORKDAY(C184,S183,DiasNOLaborables),"") -> 2021-05-04 | N184: =+IF(C184="","",IF(J184="","SIN RESPUESTA",(IF(J184<=M184,"A TIEMPO","FUERA DE TIEMPO")))) -> A TIEMPO | O184: =IF(J184="","",NETWORKDAYS(C184+1,J184,DiasNOLaborables)) -> 8 | S184: 20
A185: 174 | B185: 20219050041912 | C185: 2021-04-06 | D185: EMPRESA PRIVADA | E185: CORREO ELECTRÓNICO | F185: SOLICITUD DE INFORMACIÓN Y DOCUMENTOS | G185: REGISTROS AMBIENTALES | H185: SI | I185: SUBDIRECCIÓN DE ESTUDIOS AMBIENTALES | J185: 2021-04-07 | K185: CORREO ELECTRÓNICO | M185: =IFERROR(WORKDAY(C185,S184,DiasNOLaborables),"") -> 2021-05-04 | N185: =+IF(C185="","",IF(J185="","SIN RESPUESTA",(IF(J185<=M185,"A TIEMPO","FUERA DE TIEMPO")))) -> A TIEMPO | O185: =IF(J185="","",NETWORKDAYS(C185+1,J185,DiasNOLaborables)) -> 1 | S185: 30
A186: 175 | B186: 20219050041922 | C186: 2021-04-06 | D186: ENTIDAD PÚBLICA | E186: CORREO ELECTRÓNICO | F186: PETICIÓN | G186: ADMINISTRATIVA | H186: SI | I186: DIRECCIÓN GENERAL | J186: 2021-04-14 | K186: CORREO ELECTRÓNICO | M186: =IFERROR(WORKDAY(C186,S185,DiasNOLaborables),"") -> 2021-05-19 | N186: =+IF(C186="","",IF(J186="","SIN RESPUESTA",(IF(J186<=M186,"A TIEMPO","FUERA DE TIEMPO")))) -> A TIEMPO | O186: =IF(J186="","",NETWORKDAYS(C186+1,J186,DiasNOLaborables)) -> 6 | S186: 35
A187: 176 | B187: 20219050042352 | C187: 2021-04-07 | D187: EMPRESA PRIVADA | E187: CORREO ELECTRÓNICO | F187: CERTIFICACIONES DE TIEMPO, CLIMA Y EVENTOS HIDROLÓGICOS | G187: CERTIFICACIONES DE TIEMPO Y CLIMA | H187: SI | I187: SUBDIRECCIÓN DE METEOROLOGÍA | J187: 2021-04-15 | K187: CORREO ELECTRÓNICO | M187: =IFERROR(WORKDAY(C187,S186,DiasNOLaborables),"") -> 2021-05-27 | N187: =+IF(C187="","",IF(J187="","SIN RESPUESTA",(IF(J187<=M187,"A TIEMPO","FUERA DE TIEMPO")))) -> A TIEMPO | O187: =IF(J187="","",NETWORKDAYS(C187+1,J187,DiasNOLaborables)) -> 6 | S187: 30
A188: 177 | B188: 20219050042372 | C188: 2021-04-07 | D188: CIUDADANO | E188: CORREO ELECTRÓNICO | F188: PETICIÓN | G188: CAMBIO CLIMÁTICO | H188: SI | I188: SUBDIRECCIÓN DE ESTUDIOS AMBIENTALES | J188: 2021-05-04 | K188: CORREO ELECTRÓNICO | M188: =IFERROR(WORKDAY(C188,S187,DiasNOLaborables),"") -> 2021-05-20 | N188: =+IF(C188="","",IF(J188="","SIN RESPUESTA",(IF(J188<=M188,"A TIEMPO","FUERA DE TIEMPO")))) -> A TIEMPO | O188: =IF(J188="","",NETWORKDAYS(C188+1,J188,DiasNOLaborables)) -> 19 | S188: 20
A189: 178 | B189: 20219050042382 | C189: 2021-04-07 | D189: EMPRESA PRIVADA | E189: CORREO ELECTRÓNICO | F189: SOLICITUD DE INFORMACIÓN Y DOCUMENTOS | G189: REGISTROS AMBIENTALES | H189: SI | I189: SUBDIRECCIÓN DE ESTUDIOS AMBIENTALES | J189: 2021-04-08 | K189: CORREO ELECTRÓNICO | M189: =IFERROR(WORKDAY(C189,S188,DiasNOLaborables),"") -> 2021-05-05 | N189: =+IF(C189="","",IF(J189="","SIN RESPUESTA",(IF(J189<=M189,"A TIEMPO","FUERA DE TIEMPO")))) -> A TIEMPO | O189: =IF(J189="","",NETWORKDAYS(C189+1,J189,DiasNOLaborables)) -> 1 | S189: 20
A190: 179 | B190: 20219050041982 | C190: 2021-04-07 | D190: FUNCIONARIO IDEAM | E190: MODULO CONTACTENOS | F190: SOLICITUD DE INFORMACIÓN Y DOCUMENTOS | G190: ADMINISTRATIVA | H190: SI | I190: GRUPO DE ADMINISTRACIÓN Y DESARROLLO DEL TALENTO HUMANO | J190: 2021-04-19 | K190: CORREO ELECTRÓNICO | M190: =IFERROR(WORKDAY(C190,S189,DiasNOLaborables),"") -> 2021-05-05 | N190: =+IF(C190="","",IF(J190="","SIN RESPUESTA",(IF(J190<=M190,"A TIEMPO","FUERA DE TIEMPO")))) -> A TIEMPO | O190: =IF(J190="","",NETWORKDAYS(C190+1,J190,DiasNOLaborables)) -> 8 | S190: 20
A191: 180 | B191: 20219050042172 | C191: 2021-04-07 | D191: CIUDADANO | E191: CORREO ELECTRÓNICO | F191: SOLICITUD DE INFORMACIÓN Y DOCUMENTOS | G191: REGISTROS AMBIENTALES | H191: SI | I191: SUBDIRECCIÓN DE ESTUDIOS AMBIENTALES | J191: 2021-04-08 | K191: CORREO ELECTRÓNICO | M191: =IFERROR(WORKDAY(C191,S190,DiasNOLaborables),"") -> 2021-05-05 | N191: =+IF(C191="","",IF(J191="","SIN RESPUESTA",(IF(J191<=M191,"A TIEMPO","FUERA DE TIEMPO")))) -> A TIEMPO | O191: =IF(J191="","",NETWORKDAYS(C191+1,J191,DiasNOLaborables)) -> 1 | S191: 20
A192: 181 | B192: 20219050042202 | C192: 2021-04-07 | D192: CIUDADANO | E192: CORREO ELECTRÓNICO | F192: SOLICITUD DE INFORMACIÓN Y DOCUMENTOS | G192: REGISTROS AMBIENTALES | H192: SI | I192: SUBDIRECCIÓN DE ESTUDIOS AMBIENTALES | J192: 2021-04-08 | K192: CORREO ELECTRÓNICO | M192: =IFERROR(WORKDAY(C192,S191,DiasNOLaborables),"") -> 2021-05-05 | N192: =+IF(C192="","",IF(J192="","SIN RESPUESTA",(IF(J192<=M192,"A TIEMPO","FUERA DE TIEMPO")))) -> A TIEMPO | O192: =IF(J192="","",NETWORKDAYS(C192+1,J192,DiasNOLaborables)) -> 1 | S192: 20
A193: 182 | B193: 20219050042262 | C193: 2021-04-07 | D193: CIUDADANO | E193: CORREO ELECTRÓNICO | F193: SOLICITUD DE INFORMACIÓN Y DOCUMENTOS | G193: REGISTROS AMBIENTALES | H193: SI | I193: SUBDIRECCIÓN DE ESTUDIOS AMBIENTALES | J193: 2021-04-08 | K193: CORREO ELECTRÓNICO | M193: =IFERROR(WORKDAY(C193,S192,DiasNOLaborables),"") -> 2021-05-05 | N193: =+IF(C193="","",IF(J193="","SIN RESPUESTA",(IF(J193<=M193,"A TIEMPO","FUERA DE TIEMPO")))) -> A TIEMPO | O193: =IF(J193="","",NETWORKDAYS(C193+1,J193,DiasNOLaborables)) -> 1 | S193: 20
A194: 183 | B194: 20219050042272 | C194: 2021-04-07 | D194: CIUDADANO | E194: CORREO ELECTRÓNICO | F194: SOLICITUD DE INFORMACIÓN Y DOCUMENTOS | G194: REGISTROS AMBIENTALES | H194: SI | I194: SUBDIRECCIÓN DE ESTUDIOS AMBIENTALES | J194: 2021-04-08 | K194: CORREO ELECTRÓNICO | M194: =IFERROR(WORKDAY(C194,S193,DiasNOLaborables),"") -> 2021-05-05 | N194: =+IF(C194="","",IF(J194="","SIN RESPUESTA",(IF(J194<=M194,"A TIEMPO","FUERA DE TIEMPO")))) -> A TIEMPO | O194: =IF(J194="","",NETWORKDAYS(C194+1,J194,DiasNOLaborables)) -> 1 | S194: 20
A195: 184 | B195: 20219050042292 | C195: 2021-04-07 | D195: CIUDADANO | E195: CORREO ELECTRÓNICO | F195: SOLICITUD DE INFORMACIÓN Y DOCUMENTOS | G195: REGISTROS AMBIENTALES | H195: SI | I195: SUBDIRECCIÓN DE ESTUDIOS AMBIENTALES | J195: 2021-04-08 | K195: CORREO ELECTRÓNICO | M195: =IFERROR(WORKDAY(C195,S194,DiasNOLaborables),"") -> 2021-05-05 | N195: =+IF(C195="","",IF(J195="","SIN RESPUESTA",(IF(J195<=M195,"A TIEMPO","FUERA DE TIEMPO")))) -> A TIEMPO | O195: =IF(J195="","",NETWORKDAYS(C195+1,J195,DiasNOLaborables)) -> 1 | S195: 20
A196: 185 | B196: 20219050042312 | C196: 2021-04-07 | D196: CIUDADANO | E196: CORREO ELECTRÓNICO | F196: SOLICITUD DE INFORMACIÓN Y DOCUMENTOS | G196: REGISTROS AMBIENTALES | H196: SI | I196: SUBDIRECCIÓN DE ESTUDIOS AMBIENTALES | J196: 2021-04-08 | K196: CORREO ELECTRÓNICO | M196: =IFERROR(WORKDAY(C196,S195,DiasNOLaborables),"") -> 2021-05-05 | N196: =+IF(C196="","",IF(J196="","SIN RESPUESTA",(IF(J196<=M196,"A TIEMPO","FUERA DE TIEMPO")))) -> A TIEMPO | O196: =IF(J196="","",NETWORKDAYS(C196+1,J196,DiasNOLaborables)) -> 1 | S196: 20
A197: 186 | B197: 20219050042332 | C197: 2021-04-07 | D197: CIUDADANO | E197: CORREO ELECTRÓNICO | F197: SOLICITUD DE INFORMACIÓN Y DOCUMENTOS | G197: REGISTROS AMBIENTALES | H197: SI | I197: SUBDIRECCIÓN DE ESTUDIOS AMBIENTALES | J197: 2021-04-08 | K197: CORREO ELECTRÓNICO | M197: =IFERROR(WORKDAY(C197,S196,DiasNOLaborables),"") -> 2021-05-05 | N197: =+IF(C197="","",IF(J197="","SIN RESPUESTA",(IF(J197<=M197,"A TIEMPO","FUERA DE TIEMPO")))) -> A TIEMPO | O197: =IF(J197="","",NETWORKDAYS(C197+1,J197,DiasNOLaborables)) -> 1 | S197: 20
A198: 187 | B198: 20219050042012 | C198: 2021-04-07 | D198: CIUDADANO | E198: MODULO CONTACTENOS | F198: SOLICITUD DE INFORMACIÓN Y DOCUMENTOS | G198: ADMINISTRATIVA | H198: SI | I198: GRUPO DE ADMINISTRACIÓN Y DESARROLLO DEL TALENTO HUMANO | J198: 2021-04-13 | K198: CORREO ELECTRÓNICO | M198: =IFERROR(WORKDAY(C198,S197,DiasNOLaborables),"") -> 2021-05-05 | N198: =+IF(C198="","",IF(J198="","SIN RESPUESTA",(IF(J198<=M198,"A TIEMPO","FUERA DE TIEMPO")))) -> A TIEMPO | O198: =IF(J198="","",NETWORKDAYS(C198+1,J198,DiasNOLaborables)) -> 4 | S198: 35
A199: 188 | B199: 20219050042032 | C199: 2021-04-07 | D199: CIUDADANO | E199: MODULO CONTACTENOS | F199: CERTIFICACIONES DE TIEMPO, CLIMA Y EVENTOS HIDROLÓGICOS | G199: CERTIFICACIONES DE TIEMPO Y CLIMA | H199: SI | I199: SUBDIRECCIÓN DE METEOROLOGÍA | J199: 2021-04-15 | K199: CORREO ELECTRÓNICO | M199: =IFERROR(WORKDAY(C199,S198,DiasNOLaborables),"") -> 2021-05-27 | N199: =+IF(C199="","",IF(J199="","SIN RESPUESTA",(IF(J199<=M199,"A TIEMPO","FUERA DE TIEMPO")))) -> A TIEMPO | O199: =IF(J199="","",NETWORKDAYS(C199+1,J199,DiasNOLaborables)) -> 6 | S199: 20
A200: 189 | B200: 20219050042062 | C200: 2021-04-07 | D200: CIUDADANO | E200: MODULO CONTACTENOS | F200: SOLICITUD DE INFORMACIÓN Y DOCUMENTOS | G200: ADMINISTRATIVA | H200: SI | I200: OFICINA ASESORA JURÍDICA | J200: 2021-04-13 | K200: CORREO ELECTRÓNICO | M200: =IFERROR(WORKDAY(C200,S199,DiasNOLaborables),"") -> 2021-05-05 | N200: =+IF(C200="","",IF(J200="","SIN RESPUESTA",(IF(J200<=M200,"A TIEMPO","FUERA DE TIEMPO")))) -> A TIEMPO | O200: =IF(J200="","",NETWORKDAYS(C200+1,J200,DiasNOLaborables)) -> 4 | S200: 20
... 2435 more rows
